Workbook

Sheet Overview (hidden)
A1: 2016 Data | B1: Total no. of Primary schools | C1: # of Primary schools that have a Reception Class | D1: # Primary schools with 1) No Reception Class, and 2) No spare classroom | E1: # Primary schools with 1) No Reception Class, but 2) With spare classroom
A2: Berea | B2: 139 | C2: 27 | D2: 94 | E2: 18
A3: Buthabothe | B3: 83 | C3: 21 | D3: 12 | E3: 50
A4: Leribe | B4: 27 | C4: 0 | D4: 20 | E4: 7
A5: Mafeteng | B5: 158 | C5: 27 | D5: 43 | E5: 88
A6: Maseru | B6: 56 | C6: 6 | D6: 0 | E6: 50
A7: Mohale's Hok | B7: 41 | C7: 0 | D7: 0 | E7: 41
A8: Mokhotlong | B8: 105 | C8: 13 | D8: 50 | E8: 42 | F8: In Mokhotlong, there might be an inaccuracy of +/-15 schools where information was missing and I completed with No Reception Class and No Classroom available
A9: Qacha's Nek | B9: 104 | C9: 0 | D9: 98 | E9: 6
A10: Quthing | B10: 126 | C10: 19 | D10: 97 | E10: 10
A11: Thaba Tseka | B11: 143 | C11: 24 | D11: 98 | E11: 21
B12: =SUM(B2:B11) -> 982 | C12: =SUM(C2:C11) -> 137
A14: Building Infrastructure + Installing ECE | D14: =SUM(D2:D11) -> 512 | G14: =D14/E16 -> 0.6059171598 | H14: need infrastructure build
A15: Only Installing ECE (Software component) | E15: =SUM(E2:E11) -> 333 | G15: =E15/E16 -> 0.3940828402 | H15: have a spare classroom
E16: =E15+D14 -> 845
B18: Enrolment | E18: No of Schools w Reception Class | H18: No of Primary Schools
A19: ESB 2017 | B19: 2015 | C19: 2016 | D19: 2017 | E19: 2015 | F19: 2016 | G19: 2017 | H19: 2017
A20: Berea | B20: 723 | C20: 712 | D20: 649 | E20: 28 | F20: 27 | G20: 26 | H20: 139
A21: Botha-Bothe | B21: 532 | C21: 542 | D21: 483 | E21: 19 | F21: 19 | G21: 19 | H21: 83
A22: Leribe | B22: 633 | C22: 688 | D22: 621 | E22: 28 | F22: 28 | G22: 28 | H22: 203
A23: Mafeteng | B23: 623 | C23: 677 | D23: 665 | E23: 30 | F23: 30 | G23: 30 | H23: 158
A24: Maseru | B24: 923 | C24: 939 | D24: 911 | E24: 35 | F24: 34 | G24: 34 | H24: 254
A25: Mohale’s Hoek | B25: 560 | C25: 508 | D25: 508 | E25: 27 | F25: 27 | G25: 27 | H25: 172
A26: Mokhotlong | B26: 391 | C26: 427 | D26: 387 | E26: 15 | F26: 15 | G26: 15 | H26: 106
A27: Qacha's Nek | B27: 361 | C27: 365 | D27: 337 | E27: 18 | F27: 18 | G27: 18 | H27: 102
A28: Quthing | B28: 376 | C28: 346 | D28: 317 | E28: 19 | F28: 19 | G28: 19 | H28: 125
A29: Thaba-Tseka | B29: 650 | C29: 628 | D29: 664 | E29: 24 | F29: 24 | G29: 24 | H29: 141
A30: Total | B30: 5772 | C30: 5832 | D30: 5542 | E30: 243 | F30: 241 | G30: 240 | H30: 1483
A32: Discrepancy:
D33: ESB 2017 | E33: Doc w need for Rec
C34: No of primary schools | D34: =H30 -> 1483 | E34: =B12 -> 982
C35: No of "Reception schools" | D35: =G30 -> 240 | E35: =C12 -> 137
C36: No of primary schools w/o Reception Class | D36: =D34-D35 -> 1243 | E36: =E34-E35 -> 845
D38: 1242 | E38: Total
D39: =D38*G14 -> 752.5491124 | E39: Reception classes to be constructed/prefab
D40: =G15*D38 -> 489.4508876 | E40: Schools have a spare classroom
D42: How many Reception classes to be established in 3 years
D43: Year 1 | E43: Year 2 | F43: Year 3
D44: =$D$39/3 -> 250.8497041 | E44: =$D$39/3 -> 250.8497041 | F44: =$D$39/3 -> 250.8497041 | G44: Reception classes to be constructed/prefab
D45: =$D$40/3 -> 163.1502959 | E45: =$D$40/3 -> 163.1502959 | F45: =$D$40/3 -> 163.1502959 | G45: Schools have a spare classroom
D46: How many Reception classes to be established in 5 years
D47: Year 1 | E47: Year 2 | F47: Year 3 | G47: Year 4 | H47: Year 5
D48: =$D$39/5 -> 150.5098225 | E48: =$D$39/5 -> 150.5098225 | F48: =$D$39/5 -> 150.5098225 | G48: =$D$39/5 -> 150.5098225 | H48: =$D$39/5 -> 150.5098225 | I48: Reception classes to be constructed/prefab
D49: =$D$40/5 -> 97.89017751 | E49: =$D$40/5 -> 97.89017751 | F49: =$D$40/5 -> 97.89017751 | G49: =$D$40/5 -> 97.89017751 | H49: =$D$40/5 -> 97.89017751 | I49: Schools have a spare classroom
D51: * Data on Primary schools that have a spare classroom available for ECE, is outdated/not fully accurate. Distribution is based on 2016 data.

Sheet Conseils
A1: 0 | B1: Cette présentation guidée porte sur l’exemple du modèle de simulation du Lesotho. | C1: Ainsi s’achève cette présentation guidée. Vous pouvez recommencer, parcourir les conseils ou fermer ce fichier. Cliquez pour fermer.
A2: 1:1 | B2: Ce modèle n’a pas été conçu dans le cadre de l’élaboration du Plan stratégique du secteur de l’éducation, mais afin d’évaluer la faisabilité et les effets attendus de la nouvelle politique envisagée en matière d’éducation de la petite enfance (EPE). Cette nouvelle politique prévoit l’extension des services publics d’EPE en dotant chaque école primaire d’une « classe d’accueil préprimaire », c’est-à-dire une classe d’enseignement préscolaire rattachée à l’établissement. Les principales difficultés liées à la mise en œuvre de cette politique concernent la construction de nouvelles salles de classe et le recrutement d’enseignants d’EPE (formés). Il est important de souligner que contrairement à la plupart des modèles de simulation qui sont axés sur les besoins, ce modèle est axé sur l’offre : les projections reposent sur l’élargissement des services, et l’augmentation des effectifs est calculée sur la base du résultat de cette extension (tandis que dans l’exemple de Sao Tomé, l’objectif est exprimé en taux de scolarisation et les besoins en enseignants, salles de classe et autres sont calculés sur cette base). Les cellules apparaîtront en surbrillance et un encadré vous exposera les différentes étapes. Cliquez sur l’encadré pour passer au conseil suivant. Vous pouvez utiliser à tout moment les boutons situés en haut à droite pour parcourir les conseils, mettre en pause ou redémarrer la présentation. Différents scénarios ont été simulés dans le cadre de cette nouvelle politique (ils sont présentés dans le présent fichier dans des feuilles de calcul distinctes). Cette simulation est une étape essentielle à l’élaboration de la politique car elle permet d’étudier diverses possibilités. La dernière feuille de calcul permet de comparer les résultats des trois scénarios afin de faciliter la prise de décisions. Nous vous recommandons d’examiner ces différents éléments APRÈS avoir suivi la présentation guidée de cette feuille de calcul.
A3: 3:55 | B3: La première partie de ce modèle présente un résumé des principales hypothèses formulées et options politiques envisagées, ainsi que les graphiques utilisés pour visualiser rapidement les effets de leur modification. Nous y reviendrons ultérieurement.
A4: 56:58 | B4: Ce modèle a été conçu à partir du projet de cadre de résultats/théorie du changement élaboré dans le cadre de la nouvelle politique d’EPE. Il s’appuie sur ce cadre initial auquel des lignes ont été ajoutées afin d’effectuer les calculs. | D4: below
A5: A:b | B5: Les deux premières colonnes présentent les objectifs stratégiques et les activités définies dans la théorie du changement. | C5: FALSE | D5: below
A6: C:c, e:f | B6: Les ressources nécessaires à chaque activité sont identifiées, et un coût unitaire a été calculé ou estimé pour chacune de ces ressources. | C6: FALSE | D6: below
A7: 59:62 | B7: Les calculs réalisés pour chiffrer ces ressources apparaissent dans les lignes bleu foncé. Des lignes bleu clair ont été insérées au-dessus afin de calculer le nombre d’unités nécessaires. | C7: FALSE | D7: below
A8: 59:61 | B8: Par exemple, ici, on calcule le nombre de salles de classe préfabriquées devant être construites à partir du nombre d’années nécessaires à l’installation des préfabriqués et de la capacité annuelle maximale d’installation. | D8: below
A9: 59:66 | B9: Comme expliqué précédemment, la construction de nouvelles salles destinées aux classes d’accueil préprimaire représente l’un des principaux facteurs de coût attendus de cette nouvelle politique (les facteurs de coût désignent les postes qui constitueront l’essentiel des dépenses et dont les variations détermineront le montant total des coûts). Dans un scénario de mise en œuvre rapide de cette politique, il est prévu d’installer un certain nombre de salles de classe préfabriquées (salles temporaires pouvant être montées rapidement et nécessitant généralement peu ou pas de fondations), pendant que les achats nécessaires à la construction de salles de classe permanentes se mettent en place. | D9: below
A10: 62:62 | B10: Le coût total des salles de classe préfabriquées est calculé en multipliant le nombre de préfabriqués nécessaires par le coût unitaire de ces derniers (lequel peut inclure les frais de livraison et d’installation). | D10: below
A11: 63:68 | B11: Pour les structures permanentes, on suppose que les capacités de construction du ministère seront limitées la première année (ici, 100 salles de classe) mais que celles-ci pourront augmenter progressivement pour atteindre un maximum absolu (ici, 150 classes). La capacité de mise en œuvre du Ministère de l’éducation (ou de l’organisme responsable des infrastructures scolaires) est estimée à partir des résultats précédemment enregistrés. Le nombre de constructions réalisées au cours des dernières années est souvent un indicateur de sa capacité, notamment lorsque les budgets d’infrastructures n’ont pas été totalement exécutés. Il convient également de tenir compte des besoins de construction dans les autres sous-secteurs (par exemple, si le Ministère de l’éducation ne peut construire que 100 classes par an mais qu’il faut déjà construire 60 classes destinées à l’éducation de base, la capacité restante n’est que de 40 classes). Enfin, lors de la planification des programmes de construction, il est important de prendre en compte les différents modes d’achat et de construction (centralisé, décentralisé, communautaire…) | D11: below
A12: 66:68 | B12: Une fois le nombre de nouvelles salles de classe calculé, il est possible de chiffrer le coût de remplacement des préfabriqués par des salles permanentes lorsque le nombre total de classes est atteint (choix qui n’a pas été fait dans le cas du présent scénario).
A13: 69:73 | B13: Un audit des établissements scolaires a révélé que certains d’entre eux possédaient déjà une classe d’accueil préprimaire – bien que celle-ci nécessite parfois quelques travaux de rénovation – ou disposaient de salles de classe non utilisées pouvant être transformées en classes d’accueil préprimaire après rénovation. On calcule ensuite le nombre de salles de classe nécessitant des travaux de rénovation ainsi que les coûts correspondants.
A14: 75:79 | B14: Le coût des installations d’eau, d’assainissement et d’hygiène (EAH : latrines, lavabos, etc.) est calculé en supposant qu’il est possible d’utiliser une partie des installations déjà en place dans les établissements.
A15: 81:83 | B15: Le poste de dépenses suivant concerne l’équipement en mobilier des nouvelles salles de classe (préfabriquées, construites ou rénovées).
A16: 84:91 | B16: On calcule ensuite le coût d’équipement en supports d’apprentissage et en jeux de plein air.
A17: 92:94 | B17: Le deuxième facteur de coût de la nouvelle politique englobe le recrutement et la rémunération des enseignants des nouvelles classes d’accueil préprimaire.
A18: 92:95 | B18: La première étape consiste à calculer le nombre total de nouveaux enseignants requis dans l’EPE (lequel correspond au nombre de classes d’accueil préprimaire créées) et le nombre de recrutements nécessaires, en tenant compte du taux d’attrition (c.-à-d. le pourcentage d’enseignants qui quittent les effectifs chaque année pour cause de décès, de retraite, de reconversion professionnelle, etc.). Les sous-étapes suivantes sont spécifiques au contexte du Lesotho. Les indications que vous trouverez dans les encadrés ci-après sont peu susceptibles d’être applicables à d’autres pays. Dans la plupart des cas, le nombre d’enseignants à former sera estimé directement à partir du nombre de nouveaux enseignants requis, en fonction du nombre de nouvelles classes/salles de classe ou du nombre d’élèves (à l’aide d’hypothèses ou d’objectifs exprimés sous forme de ratio élèves/enseignant). Si ces indications ne vous intéressent pas ou que vous les trouvez trop complexes, vous pouvez ignorer les deux encadrés suivants (entre crochets).
A19: 95:101 | B19: [Dans ce cas, on suppose qu’il existe une « réserve » d’enseignants d’EPE formés et disponibles pouvant être mobilisés rapidement. Il est également possible de mobiliser les enseignants inactifs du primaire. On estime que l’institut de formation des enseignants peut assurer la formation certifiante de 60 enseignants par an au DPE. À terme, un nouveau diplôme sera mis en place afin de former (et de rémunérer) les enseignants du DPE au même niveau que les enseignants du primaire.]
A20: 102:104 | B20: [Compte tenu de la réserve d’enseignants mobilisables et des nouvelles cohortes d’enseignants, on estime que la réserve d’enseignants du DPE et du primaire sera absorbée au cours des deux premières années, ce qui aboutira à un « déficit » d’enseignants au terme de la deuxième année : le système n’est donc pas en mesure de recruter des enseignants en suivant le rythme prévu de construction de nouvelles classes. Il est important de souligner ce déficit, car il constitue un frein à la mise œuvre du plan : même si l’on construit le nombre requis de salles de classe, celles-ci seront inutiles si aucun enseignant n’est disponible. Il s’agira d’un indicateur clé pour ajuster les cibles de la nouvelle politique.]
A21: 105:110 | B21: La prochaine étape à suivre pour estimer les coûts liés aux enseignants consiste à estimer la rémunération moyenne d’un enseignant. À cet effet, il convient de séparer les enseignants selon leur statut et leur salaire. Ici, il existe deux grandes catégories d’enseignants percevant une rémunération différente : les enseignants du DPE titulaires du certificat actuel ou nouvellement créé, et les enseignants du primaire et ceux dont la formation sera sanctionnée par un diplôme. Les enseignants titulaires d’un certificat peuvent demander à passer dans la catégorie supérieure des enseignants diplômés.
A22: 111:115 | B22: On calcule alors le salaire moyen de chaque catégorie afin d’estimer le coût total de rémunération des enseignants.
A23: 116:116 | B23: On calcule ensuite le coût de formation des chefs d’établissement des écoles dans lesquelles de nouvelles salles d’accueil préprimaire seront créées.
A24: 116:122 | B24: Estimation du coût de recrutement et de formation de nouveaux inspecteurs.
A25: 123:133 | B25: On estime ensuite le coût de la formation continue. Ici, trois types de formation continue sont examinés : - Un stage de formation de longue durée à destination des enseignants du primaire mobilisés dans les classes d’accueil préprimaire ; - Une formation continue régulière pour les jeunes diplômés titulaires d’un certificat et une formation annuelle pour une partie des enseignants (ici, 20 %) ; - Une formation continue de courte durée sur le nouveau programme scolaire à destination de tous les enseignants.
A26: 134:136 | B26: Les dernières lignes relatives aux ressources humaines concernent le renforcement des bureaux centralisés et décentralisés.
A27: 137:138 | B27: Pour finir, on estime le coût du programme d’alimentation scolaire en fonction du nombre d’élèves qui seront scolarisés dans les classes d’accueil préprimaire (lequel est obtenu en multipliant le nombre prévu d’élèves par classe par le nombre de classes d’accueil préprimaire créées et dotées d’un enseignant).
A28: 140:170 | B28: Les dernières lignes reprennent les dépenses estimées (globalement et par catégorie) par rapport au budget de l’éducation. Certains taux de scolarisation sont également calculés afin d’estimer l’impact de la nouvelle politique en matière de couverture de la population cible.
A29: 3:55 | B29: En revenant à la partie supérieure de la feuille de calcul, vous pouvez voir comment s’articulent les principaux paramètres de la politique afin d’effectuer les ajustements nécessaires pour garantir la faisabilité et l’optimisation des résultats. Vous pouvez essayer de modifier les valeurs de certaines options de scénario (notamment le montant de l’investissement initial) et observer les effets sur les graphiques (par exemple, au niveau du déficit en enseignants). L’un des messages clés que nous enseigne le premier graphique est que même si des investissements d’infrastructures importants sont nécessaires au cours des premières années, à long terme, le coût de la politique sera déterminé par les dépenses courantes (essentiellement constituées par la rémunération des enseignants).
A30: 3:55 | B30: Enfin, vous verrez que différents scénarios ont été simulés dans le cadre de cette nouvelle politique (ils sont présentés dans le présent fichier dans des feuilles de calcul distinctes). Cette simulation est une étape essentielle à l’élaboration de la politique car elle permet d’étudier diverses possibilités. Ici, la principale différence entre les scénarios réside dans le nombre d’années prévues pour le déploiement des classes d’accueil préprimaire. Le premier scénario est établi sur une durée de trois ans. Plusieurs paramètres ont été ajustés afin de s’adapter aux plans de déploiement sur cinq et sept ans des deux autres scénarios (feuilles de calcul suivantes). La dernière feuille de calcul permet de comparer les résultats des trois scénarios afin de faciliter la prise de décisions. Vous pouvez examiner ces différentes feuilles de calcul.

Sheet Classes d’acc. préprim. – 3 ans
H1: Redémarrer | I1: Retour | J1: Suivant | K1: Commencer/ Continuer | L1: Arrêter/ Mettre en pause
B3: Options de scénario | G3: Hypothèses
B5: Nombre d’années prévues pour déployer les classes d’accueil préprimaire | D5: 3 | F5: Nombre d’écoles dotées d’une classe d’accueil préprimaire | I5: =Overview!D35 -> 240
F6: Nombre d’écoles ne possédant pas de classe d’accueil préprimaire | I6: =Overview!D38 -> 1242
B7: Nombre d’années prévues pour mettre aux normes les salles d’accueil préprimaire existantes | D7: 2 | F7: Nombre d’écoles disposant de salles de classe pouvant être transformées en classes d’accueil préprimaire | I7: =Overview!D40 -> 489.4508876
B8: Nombre d’années prévues pour rendre opérationnelles les salles de classe disponibles | D8: 2 | F8: Nombre de salles de classes qui seront construites | I8: =I6-I7 -> 752.5491124
B10: Nombre d’années prévues pour installer les préfabriqués | D10: 2 | F10: Nombre de préfabriqués pouvant être installés chaque année | I10: 150
B11: Nombre d’années avant la construction de nouvelles salles | D11: 0 | F11: Nombre de salles de classe pouvant être construites la première année | I11: 100
F12: Nombre maximal de salles de classe pouvant être construites en une année | I12: 150
B13: Nombre d’enfants par classe d’accueil préprimaire | D13: 23 | F13: Nombre de salles de classe pouvant être rénovées chaque année | I13: 50
F14: Proportion de salles de classe disponibles qui seront rénovées | I14: 0.33
B15: Remplacement des préfabriqués par des salles de classe permanentes | D15: Non | F15: Pourcentage de classes d’accueil préprimaire existantes nécessitant : | H15: une rénovation | I15: 0.25
F16: Proportion of existing RCs needing: | H16: WASH facilities | I16: 0
F17: Proportion of existing RCs needing: | H17: furniture | I17: 0
F18: Proportion of existing RCs needing: | H18: TLM | I18: 0
F19: Proportion of existing RCs needing: | H19: outdoor play materials | I19: 0
F20: Pourcentage de salles de classe disponibles nécessitant des installations EAH | I20: 0.75
F21: Pourcentage de nouvelles salles de classe nécessitant des installations EAH | I21: 0.9
F22: Pourcentage de nouvelles salles de classe devant être équipées en mobilier | I22: 0.9
B24: Année donnant aux enseignants du DPE la possibilité de passer en catégorie supérieure | D24: 2024 | F24: Taux d’attrition parmi les enseignants du DPE | I24: 0.02
F25: Nombre de nouveaux enseignants du DPE disponibles | I25: 300
F26: Nombre d’enseignants disponibles dans le primaire pouvant être formés à l’EPE | I26: 300
F27: Effectif de la cohorte d’enseignants certifiés en DPE | I27: 60
F28: Effectif de la cohorte d’enseignants diplômés en DPE (à compter de 2023) | I28: 50
F29: Année d’obtention du diplôme d’enseignant en DPE | I29: 2023
B30: Année de recrutement de nouveaux inspecteurs | D30: 2021 | F30: Proportion d’enseignants du DPE qui demanderont à passer en catégorie supérieure | I30: 0.5
F31: Nombre maximal d’enseignants pouvant passer dans la catégorie des enseignants diplômés chaque année | I31: 30
B32: Pourcentage d’enseignants suivant une formation continue chaque année | D32: 0.2 | F32: Augmentation annuelle du salaire des enseignants | I32: 0.02
B33: Nombre de jours de formation continue de courte durée | D33: 5 | F33: Augmentation annuelle du salaire des inspecteurs | I33: 0.02
B34: Nombre de jours de formation continue de longue durée | D34: 20 | F34: Pourcentage d’enseignants en poste nécessitant une formation continue de longue durée | I34: 0.35
D36: ="Coût total sur "&D5&" ans : " -> Coût total sur 3 ans : | F36: =" "&TEXT(SUM(H140:OFFSET(G140,0,D5))/1000000,"#,##0") & " millions de rands sud-africains" -> 467 millions de rands sud-africains
D54: ="Year when there are enough teachers for all classrooms opened : "& CEILING(IF(Q104=0,IF(P104=0,IF(O104=0,IF(N104=0,IF(M104=0,IF(L104=0,IF(K104=0,IF(J104=0, IF(I104=0,IF(H104=0,H56,I56),J56),K56),L56),M56),N56),O56),P56),Q56),Q56+Q104/(Q101+Q98)),1) -> Year when there are enough teachers for all classrooms opened : 2028
H55: 1 | I55: 2 | J55: 3 | K55: 4 | L55: 5 | M55: 6 | N55: 7 | O55: 8 | P55: 9 | Q55: 10
A56: Déploiement de l’EPE à grande échelle : doter chaque école primaire d’une classe d’accueil préprimaire (sur 3 ans) | H56: 2020 | I56: =H56+1 -> 2021 | J56: =I56+1 -> 2022 | K56: =J56+1 -> 2023 | L56: 2024 | M56: 2025 | N56: 2026 | O56: 2027 | P56: 2028 | Q56: 2029
A57: Objectifs stratégiques | B57: Activités | C57: Unité des produits attendus | E57: Coût unitaire (en rand sud-africain) | F57: Coût unitaire (en dollars É-U) | H57: Coût annuel (en milliers de rands sud-africains) | R57: Coût total sur les 5 premières années (en rands sud-africains) | S57: Hypothèses
G58: Scénarios de déploiement | H58: ="Année "& H55 & " " & 2019+H55 & " - " & 2020+H55 -> Année 1 2020 - 2021 | I58: Année 2 2021 - 2022 | J58: Année 3 2022 - 2023 | K58: Année 4 2023 - 2024 | L58: Année 5 2024 - 2025 | M58: Année 6 2025 - 2026 | N58: Année 7 2026 - 2027 | O58: Année 8 2027 - 2028 | P58: Année 9 2028 - 2029 | Q58: Année 10 2029 - 2030
A59: 1.1 Garantir des infrastructures adaptées aux besoins des enfants et sûres pour mettre en place des classes d’accueil préprimaire | B59: 1.1.1 Construction de nouvelles classes d’accueil préprimaire | C59: ê | D59: Nombre maximal de préfabriqués installés chaque année | G59: =I10 -> 150 | R59: =SUM(G59:L59) -> 150
C60: ê | D60: Nombre d’années prévues pour installer les préfabriqués | G60: =D10 -> 2 | R60: =SUM(G60:L60) -> 2
C61: ê | G61: Nombre de préfabriqués qui seront installés | H61: =IF(H$55<=$G$60,$G$59,0) -> 150 | I61: =IF(I$55<=$G$60,$G$59,0) -> 150 | J61: 0 | K61: 0 | L61: 0 | M61: 0 | N61: 0 | O61: 0 | P61: 0 | Q61: 0
C62: Nombre de classes d’accueil préprimaire préfabriquées qui seront mises en place (TVA, transport ou installation inclus) | E62: 300000 | F62: =E62*0.065371 -> 19611.3 | G62: Une première option consiste à chiffrer le coût des préfabriqués pour les deux premières années seulement, avant de chiffrer la construction pour les années 3 à 5. Une deuxième option consiste à chiffrer le coût des préfabriqués pour 5 années, mais compte tenu des coûts que cela représente cette solution est peu pertinente. | H62: =$E62*H61 -> 45000000 | I62: =$E62*I61 -> 45000000 | J62: =$E62*J61/1000000 -> 0 | K62: 0 | L62: 0 | M62: 0 | N62: 0 | O62: 0 | P62: 0 | Q62: 0 | R62: =SUM(H62:L62) -> 90000000 | S62: Il s’agit du coût exact d’une salle de classe préfabriquée de 7 mètres x 7 mètres pouvant accueillir jusqu’à 50 enfants, comme en produit la société sud-africaine Kwikspace. Ce coût inclut l’estimation de la TVA, du transport et de l’installation éventuelle.
C63: ê | D63: Nombre de constructions la première année | G63: =I11 -> 100 | R63: =SUM(G63:L63) -> 100
C64: ê | D64: Nombre maximal de constructions annuelles | G64: =I12 -> 150 | R64: =SUM(G64:L64) -> 150
C65: ê | D65: Taux d’augmentation du nombre de constructions annuelles | G65: =IF(incr_rate(G63,($D$5-$D$11),I8-SUM(H61:Q61))<0,0, incr_rate(G63,($D$5-$D$11),I8-SUM(H61:Q61))) -> 0.4430633548 | R65: =SUM(G65:L65) -> 0.4430633548
C66: ê | G66: Nombre de nouvelles constructions | H66: =IF(H$55<=$D$11,0, IF($G$63*(1+$G$65)^(G$55-$D$11)<=$G$64, IF(H$55>$D$5,0,$G$63*(1+$G$65)^(G$55-$D$11)), MIN($G$64,MAX(0,$I$8-SUM($H$61:$Q$61)-SUM($G66:G$66))))) -> 100 | I66: =IF(I$55<=$D$11,0, IF($G$63*(1+$G$65)^(H$55-$D$11)<=$G$64, IF(I$55>$D$5,0,$G$63*(1+$G$65)^(H$55-$D$11)), MIN($G$64,MAX(0,$I$8-SUM($H$61:$Q$61)-SUM($G66:H$66))))) -> 144.3063355 | J66: =IF(J$55<=$D$11,0, IF($G$63*(1+$G$65)^(I$55-$D$11)<=$G$64, IF(J$55>$D$5,0,$G$63*(1+$G$65)^(I$55-$D$11)), MIN($G$64,MAX(0,$I$8-SUM($H$61:$Q$61)-SUM($G66:I$66))))) -> 150 | K66: =IF(K$55<=$D$11,0, IF($G$63*(1+$G$65)^(J$55-$D$11)<=$G$64, IF(K$55>$D$5,0,$G$63*(1+$G$65)^(J$55-$D$11)), MIN($G$64,MAX(0,$I$8-SUM($H$61:$Q$61)-SUM($G66:J$66))))) -> 58.24277695 | L66: =IF(L$55<=$D$11,0, IF($G$63*(1+$G$65)^(K$55-$D$11)<=$G$64, IF(L$55>$D$5,0,$G$63*(1+$G$65)^(K$55-$D$11)), MIN($G$64,MAX(0,$I$8-SUM($H$61:$Q$61)-SUM($G66:K$66))))) -> 0 | M66: =IF(M$55<=$D$11,0, IF($G$63*(1+$G$65)^(L$55-$D$11)<=$G$64, IF(M$55>$D$5,0,$G$63*(1+$G$65)^(L$55-$D$11)), MIN($G$64,MAX(0,$I$8-SUM($H$61:$Q$61)-SUM($G66:L$66))))) -> 0 | N66: =IF(N$55<=$D$11,0, IF($G$63*(1+$G$65)^(M$55-$D$11)<=$G$64, IF(N$55>$D$5,0,$G$63*(1+$G$65)^(M$55-$D$11)), MIN($G$64,MAX(0,$I$8-SUM($H$61:$Q$61)-SUM($G66:M$66))))) -> 0 | O66: =IF(O$55<=$D$11,0, IF($G$63*(1+$G$65)^(N$55-$D$11)<=$G$64, IF(O$55>$D$5,0,$G$63*(1+$G$65)^(N$55-$D$11)), MIN($G$64,MAX(0,$I$8-SUM($H$61:$Q$61)-SUM($G66:N$66))))) -> 0 | P66: =IF(P$55<=$D$11,0, IF($G$63*(1+$G$65)^(O$55-$D$11)<=$G$64, IF(P$55>$D$5,0,$G$63*(1+$G$65)^(O$55-$D$11)), MIN($G$64,MAX(0,$I$8-SUM($H$61:$Q$61)-SUM($G66:O$66))))) -> 0 | Q66: =IF(Q$55<=$D$11,0, IF($G$63*(1+$G$65)^(P$55-$D$11)<=$G$64, IF(Q$55>$D$5,0,$G$63*(1+$G$65)^(P$55-$D$11)), MIN($G$64,MAX(0,$I$8-SUM($H$61:$Q$61)-SUM($G66:P$66))))) -> 0
C67: ê | G67: Nombre de constructions en remplacement des préfabriqués | H67: =IF($D$15="Yes",IF(H66=0,MIN(MAX($H$66:$Q$66),SUM($H$61:$Q$61)-SUM(G67:$G$67)),0),0) -> 0 | I67: =IF($D$15="Yes",IF(I66=0,MIN(MAX($H$66:$Q$66),SUM($H$61:$Q$61)-SUM($G67:H$67)),0),0) -> 0 | J67: =IF($D$15="Yes",IF(J66=0,MIN(MAX($H$66:$Q$66),SUM($H$61:$Q$61)-SUM($G67:I$67)),0),0) -> 0 | K67: =IF($D$15="Yes",IF(K66=0,MIN(MAX($H$66:$Q$66),SUM($H$61:$Q$61)-SUM($G67:J$67)),0),0) -> 0 | L67: =IF($D$15="Yes",IF(L66=0,MIN(MAX($H$66:$Q$66),SUM($H$61:$Q$61)-SUM($G67:K$67)),0),0) -> 0 | M67: =IF($D$15="Yes",IF(M66=0,MIN(MAX($H$66:$Q$66),SUM($H$61:$Q$61)-SUM($G67:L$67)),0),0) -> 0 | N67: =IF($D$15="Yes",IF(N66=0,MIN(MAX($H$66:$Q$66),SUM($H$61:$Q$61)-SUM($G67:M$67)),0),0) -> 0 | O67: =IF($D$15="Yes",IF(O66=0,MIN(MAX($H$66:$Q$66),SUM($H$61:$Q$61)-SUM($G67:N$67)),0),0) -> 0 | P67: =IF($D$15="Yes",IF(P66=0,MIN(MAX($H$66:$Q$66),SUM($H$61:$Q$61)-SUM($G67:O$67)),0),0) -> 0 | Q67: =IF($D$15="Yes",IF(Q66=0,MIN(MAX($H$66:$Q$66),SUM($H$61:$Q$61)-SUM($G67:P$67)),0),0) -> 0
C68: Nombre de classes d’accueil préprimaire permanentes qui seront construites (hors TVA, transport et installation) | E68: 400000 | F68: =E68*0.065371 -> 26148.4 | G68: Une seule option ici (veuillez consulter les notes pour connaître les autres possibilités). | H68: =(H66+H67)*$E$68 -> 40000000 | I68: 57722534.19 | J68: 60000000 | K68: 23297110.78 | L68: 0 | M68: 0 | N68: 0 | O68: 0 | P68: 0 | Q68: 0 | R68: =SUM(H68:L68) -> 181019645 | S68: Estimation réalisée à partir des données financières communiquées par la division chargée des soins et du développement de la petite enfance ; le coût de construction d’un ensemble de 2 classes étant de 700 000 rands sud-africains, le coût d’une classe a été estimé à 400 000 rands sud-africains.
B69: 1.1.2 Transformation des salles de classe primaire en salles d’accueil préprimaire | C69: ê | D69: Capacité annuelle de rénovation | G69: =I13 -> 50 | R69: =SUM(G69:L69) -> 50
C70: ê | D70: Pourcentage de classes d’accueil préprimaire existantes nécessitant une rénovation | G70: =I15 -> 0.25 | R70: =SUM(G70:L70) -> 0.25
C71: ê | G71: Nombre de salles d’accueil préprimaire à rénover | H71: =MIN($G$69,MAX($I$5*$G70-SUM(G71:$G$71),0)) -> 50 | I71: =MIN($G$69,MAX($I$5*$G70-SUM($G71:H$71),0)) -> 10 | J71: =MIN($G$69,MAX($I$5*$G70-SUM($G71:I$71),0)) -> 0 | K71: =MIN($G$69,MAX($I$5*$G70-SUM($G71:J$71),0)) -> 0 | L71: =MIN($G$69,MAX($I$5*$G70-SUM($G71:K$71),0)) -> 0 | M71: =MIN($G$69,MAX($I$5*$G70-SUM($G71:L$71),0)) -> 0 | N71: =MIN($G$69,MAX($I$5*$G70-SUM($G71:M$71),0)) -> 0 | O71: =MIN($G$69,MAX($I$5*$G70-SUM($G71:N$71),0)) -> 0 | P71: =MIN($G$69,MAX($I$5*$G70-SUM($G71:O$71),0)) -> 0 | Q71: =MIN($G$69,MAX($I$5*$G70-SUM($G71:P$71),0)) -> 0 | R71: =MIN($I$13,MAX($I$5*$G70-SUM($G71:Q$71),0)) -> 0
C72: ê | D72: Pourcentage de salles de classe disponibles qui seront rénovées | G72: =I14 -> 0.33 | R72: =SUM(G72:L72) -> 0.33
C73: ê | G73: Nombre de salles de classe disponibles qui seront rénovées | H73: =MIN($G$69-H71,MAX($I$7*$G72-SUM(G$73:$G73),0)) -> 0 | I73: =MIN($G$69-I71,MAX($I$7*$G72-SUM($G$73:H73),0)) -> 40 | J73: =MIN($G$69-J71,MAX($I$7*$G72-SUM($G$73:I73),0)) -> 50 | K73: =MIN($G$69-K71,MAX($I$7*$G72-SUM($G$73:J73),0)) -> 50 | L73: =MIN($G$69-L71,MAX($I$7*$G72-SUM($G$73:K73),0)) -> 21.5187929 | M73: =MIN($G$69-M71,MAX($I$7*$G72-SUM($G$73:L73),0)) -> 0 | N73: =MIN($G$69-N71,MAX($I$7*$G72-SUM($G$73:M73),0)) -> 0 | O73: =MIN($G$69-O71,MAX($I$7*$G72-SUM($G$73:N73),0)) -> 0 | P73: =MIN($G$69-P71,MAX($I$7*$G72-SUM($G$73:O73),0)) -> 0 | Q73: =MIN($G$69-Q71,MAX($I$7*$G72-SUM($G$73:P73),0)) -> 0 | R73: =MIN($I$13-R71,MAX($I$7*$G72-SUM($G$73:Q73),0)) -> 0
C74: Nombre de salles de classe primaires transformées en classes d’accueil préprimaire | E74: 10000 | F74: =E74*0.065371 -> 653.71 | G74: Nous devons supposer qu’au moins un tiers des salles de classe que nous considérons comme disponibles ne sont en fait pas utilisables, c’est pourquoi nous conseillons de les intégrer au budget prévu pour les préfabriqués. | H74: =(H71+H73)*$E74 -> 500000 | I74: 500000 | J74: 500000 | K74: 500000 | L74: 215187.929 | M74: 0 | N74: 0 | O74: 0 | P74: 0 | Q74: 0 | R74: =SUM(H74:L74) -> 2215187.929 | S74: Le Ministère de l’éducation et de la formation utilise une subvention de 5 maloti par enfant pour rénover/réhabiliter les infrastructures. Pour une salle accueillant 23 enfants, cette subvention est de 115 000 rands par classe d’accueil préprimaire.
B75: 1.1.3 Mise en place d’installations EAH adaptées aux besoins des enfants | C75: ê | D75: Pourcentage de salles de classe disponibles nécessitant des installations EAH | G75: =I20 -> 0.75 | R75: =SUM(G75:L75) -> 0.75
C76: ê | D76: Pourcentage de nouvelles salles de classe nécessitant des installations EAH | G76: =I21 -> 0.9 | R76: =SUM(G76:L76) -> 0.9
C77: ê | D77: Percentage of existing RCs needing WASH facilities | G77: =I16 -> 0 | R77: =SUM(G77:L77) -> 0
C78: ê | G78: Nombre d’installations EAH qui seront construites | H78: =$G$76*(H$61+H$66)+IF(H$55<=$D$7,$G77*IFERROR($I$5/$D$7,0),0)+IF(H$55<=$D$8,$G$75*IFERROR($I$7/$D$8,0),0) -> 408.5440828 | I78: 448.4197848 | J78: 135 | K78: 52.41849925 | L78: 0 | M78: 0 | N78: 0 | O78: 0 | P78: 0 | Q78: 0
C79: Nombre de blocs sanitaires installés (toilettes + poste de lavage des mains) | D79: 0 | E79: 20000 | F79: =E79*0.065371 -> 1307.42 | G79: Pour chaque nouvelle salle de classe ou salle de classe rénovée | H79: =H78*$E79 -> 8170881.657 | I79: 8968395.695 | J79: 2700000 | K79: 1048369.985 | L79: 0 | M79: 0 | N79: 0 | O79: 0 | P79: 0 | Q79: 0 | R79: =SUM(H79:L79) -> 20887647.34 | S79: La plupart des écoles primaires semblent équipées d’installations EAH également adaptées aux enfants âgés de 5 ans. Cet élément peut donc être omis.
C80: ê | D80: % of existing RCs needing furniture sets | G80: =I17 -> 0 | R80: =SUM(G80:L80) -> 0
A81: 1.2 Équiper en mobilier adéquat toutes les classes d’accueil préprimaire | B81: 1.2.1 Équipement des classes d’accueil préprimaire en mobilier de base | C81: ê | D81: Pourcentage de salles de classe disponibles devant être équipées en mobilier | G81: =I22 -> 0.9 | R81: =SUM(G81:L81) -> 0.9
C82: ê | G82: Nombre de kits d’ameublement qui seront fournis | H82: =H$61+H$66+IF(H$55<=$D$7,$G80*IFERROR($I$5/$D$7,0),0)+IF(H$55<=$D$8,$G$81*IFERROR($I$7/$D$8,0),0) -> 470.2528994 | I82: 514.5592349 | J82: 150 | K82: 58.24277695 | L82: 0 | M82: 0 | N82: 0 | O82: 0 | P82: 0 | Q82: 0
C83: Nombre de classes d’accueil préprimaire qui seront équipées en mobilier | E83: 3500 | F83: =E83*0.065371 -> 228.7985 | H83: =H82*$E83 -> 1645885.148 | I83: 1800957.322 | J83: 525000 | K83: 203849.7193 | L83: 0 | M83: 0 | N83: 0 | O83: 0 | P83: 0 | Q83: 0 | R83: =SUM(H83:L83) -> 4175692.189 | S83: Le Ministère de l’éducation et de la formation procède actuellement à l’estimation de ces coûts sur la base du mobilier équipant les écoles primaires.
A84: 1.3 Fournir des supports d’enseignement et d’apprentissage de qualité | B84: 1.3.1 Fourniture d’un ensemble complet de matériel d’enseignement, d’apprentissage et de jeu | C84: ê | D84: Pourcentage de classes d’accueil préprimaire existantes devant être dotées de matériel pédagogique | G84: =I18 -> 0 | R84: =SUM(G84:L84) -> 0
C85: ê | G85: Nombre de nouveaux kits de matériel pédagogique qui seront fournis | H85: =H$61+H$66+IF(H$55<=$D$7,$G84*IFERROR($I$5/$D$7,0),0)+IF(H$55<=$D$8,IFERROR($I$7/$D$8,0),0) -> 494.7254438 | I85: 539.0317793 | J85: 150 | K85: 58.24277695 | L85: 0 | M85: 0 | N85: 0 | O85: 0 | P85: 0 | Q85: 0
C86: ê | D86: Taux annuel de remplacement | G86: 0.05 | R86: =SUM(G86:L86) -> 0.05
C87: ê | G87: Nombre de kits de matériel pédagogique qui seront remplacés | H87: =$G86*SUM(G85:$G85) -> 0 | I87: =$G86*SUM($G85:H85) -> 24.73627219 | J87: =$G86*SUM($G85:I85) -> 51.68786115 | K87: =$G86*SUM($G85:J85) -> 59.18786115 | L87: =$G86*SUM($G85:K85) -> 62.1 | M87: =$G86*SUM($G85:L85) -> 62.1 | N87: =$G86*SUM($G85:M85) -> 62.1 | O87: =$G86*SUM($G85:N85) -> 62.1 | P87: =$G86*SUM($G85:O85) -> 62.1 | Q87: =$G86*SUM($G85:P85) -> 62.1
C88: Nombre de classes d’accueil préprimaire qui seront dotées en matériel pédagogique | E88: 4500 | F88: =E88*0.065371 -> 294.1695 | G88: Ici, nous supposons qu’un certain niveau de remplacement est nécessaire chaque année. | H88: =(H85+H87)*$E88 -> 2226264.497 | I88: 2536956.232 | J88: 907595.3752 | K88: 528437.8714 | L88: 279450 | M88: 279450 | N88: 279450 | O88: 279450 | P88: 279450 | Q88: 279450 | R88: =SUM(H88:L88) -> 6478703.975 | S88: Le Ministère de l’éducation et de la formation doit fournir des précisions sur le kit complet de matériel d’enseignement et d’apprentissage destiné aux classes d’accueil préprimaire (y compris son coût).
B89: 1.3.2 Fourniture de jeux de plein air | C89: ê | D89: Pourcentage de classes d’accueil préprimaire existantes devant être équipées en jeux de plein air | G89: =I19 -> 0 | R89: =SUM(G89:L89) -> 0
C90: ê | G90: Nombre de jeux de plein air qui seront fournis | H90: =H$61+H$66+IF(H$55<=$D$7,$G89*IFERROR($I$5/$D$7,0),0)+IF(H$55<=$D$8,IFERROR($I$7/$D$8,0),0) -> 494.7254438 | I90: 539.0317793 | J90: 150 | K90: 58.24277695 | L90: 0 | M90: 0 | N90: 0 | O90: 0 | P90: 0 | Q90: 0
C91: Nombre de jeux de plein air fournis | E91: 1500 | F91: =E91*0.065371 -> 98.0565 | H91: =H90*$E91 -> 742088.1657 | I91: 808547.6689 | J91: 225000 | K91: 87364.16542 | L91: 0 | M91: 0 | N91: 0 | O91: 0 | P91: 0 | Q91: 0 | R91: =SUM(H91:L91) -> 1863000 | S91: Le Ministère de l’éducation et de la formation doit fournir des précisions sur le kit complet de matériel d’enseignement et d’apprentissage destiné aux classes d’accueil préprimaire (y compris son coût).
A92: 1.4 Renforcer les capacités du personnel de l’EPE | B92: 1.4.2 Salaire annuel d’un enseignant (assistant) spécialiste des soins et du développement de la petite enfance par classe d’accueil préprimaire (sur la base du salaire actuel des enseignants du DPE) | C92: ê | G92: Nombre de nouvelles classes d’accueil préprimaire opérationnelles | H92: =H$61+H$66+IF(H$55<=$D$8,IFERROR($I$7/$D$8,0),0) -> 494.7254438 | I92: 539.0317793 | J92: 150 | K92: 58.24277695 | L92: 0 | M92: 0 | N92: 0 | O92: 0 | P92: 0 | Q92: 0
C93: ê | G93: Nombre total de classes d’accueil préprimaire opérationnelles | H93: =H92+$I$5 -> 734.7254438 | I93: =I92+H93 -> 1273.757223 | J93: =J92+I93 -> 1423.757223 | K93: =K92+J93 -> 1482 | L93: =L92+K93 -> 1482 | M93: 1482 | N93: 1482 | O93: 1482 | P93: 1482 | Q93: 1482
C94: ê | D94: Taux d’attrition parmi les enseignants du DPE | G94: =I24 -> 0.02
C95: ê | G95: Nombre de nouveaux enseignants requis | H95: =H92+$G$94*H96 -> 499.5254438 | I95: =I92+$G$94*H103 -> 553.7262881 | J95: 168.8101098 | K95: 77.87668457 | L95: 21.44122947 | M95: 22.61240488 | N95: 24.36015679 | O95: 26.07295365 | P95: 27.75149458 | Q95: 29.04
C96: ê | G96: Enseignants du DPE actuellement en poste | H96: =$I$5 -> 240 | I96: 240 | J96: 240 | K96: 240 | L96: 240 | M96: 240 | N96: 240 | O96: 240 | P96: 240 | Q96: 240
C97: ê | D97: Recrutements | E97: Réserve | F97: =I25 -> 300 | G97: Enseignants du DPE disponibles | H97: =MAX(0,MIN(H95-H98,MAX(0,$F97-SUM($G97:G97)))) -> 300 | I97: =MAX(0,MIN(I95-I98,MAX(0,$F97-SUM($G97:H97)))) -> 0 | J97: =MAX(0,MIN(J95-J98,MAX(0,$F97-SUM($G97:I97)))) -> 0 | K97: =MAX(0,MIN(K95-K98,MAX(0,$F97-SUM($G97:J97)))) -> 0 | L97: =MAX(0,MIN(L95-L98,MAX(0,$F97-SUM($G97:K97)))) -> 0 | M97: =MAX(0,MIN(M95-M98,MAX(0,$F97-SUM($G97:L97)))) -> 0 | N97: =MAX(0,MIN(N95-N98,MAX(0,$F97-SUM($G97:M97)))) -> 0 | O97: =MAX(0,MIN(O95-O98,MAX(0,$F97-SUM($G97:N97)))) -> 0 | P97: =MAX(0,MIN(P95-P98,MAX(0,$F97-SUM($G97:O97)))) -> 0 | Q97: =MAX(0,MIN(Q95-Q98,MAX(0,$F97-SUM($G97:P97)))) -> 0
C98: ê | E98: Effectif de la cohorte | F98: =I27 -> 60 | G98: Enseignants nouvellement certifiés | H98: =MIN($F$98,H95) -> 60 | I98: =MIN($F$98,I95+H104) -> 60 | J98: 60 | K98: 60 | L98: 60 | M98: 60 | N98: 60 | O98: 60 | P98: 60 | Q98: 29.04
C99: ê | E99: Réserve | F99: =I26 -> 300 | G99: Enseignants disponibles dans le primaire | H99: =MAX(0,MIN(H95-H98-H97,MAX(0,$F99-SUM($G99:G99)))) -> 139.5254438 | I99: =MAX(0,MIN(I95-I98-I97,MAX(0,$F99-SUM($G99:H99)))) -> 160.4745562 | J99: =MAX(0,MIN(J95-J98-J97,MAX(0,$F99-SUM($G99:I99)))) -> 0 | K99: =MAX(0,MIN(K95-K98-K97,MAX(0,$F99-SUM($G99:J99)))) -> 0 | L99: =MAX(0,MIN(L95-L98-L97,MAX(0,$F99-SUM($G99:K99)))) -> 0 | M99: =MAX(0,MIN(M95-M98-M97,MAX(0,$F99-SUM($G99:L99)))) -> 0 | N99: =MAX(0,MIN(N95-N98-N97,MAX(0,$F99-SUM($G99:M99)))) -> 0 | O99: =MAX(0,MIN(O95-O98-O97,MAX(0,$F99-SUM($G99:N99)))) -> 0 | P99: =MAX(0,MIN(P95-P98-P97,MAX(0,$F99-SUM($G99:O99)))) -> 0 | Q99: =MAX(0,MIN(Q95-Q98-Q97,MAX(0,$F99-SUM($G99:P99)))) -> 0
C100: ê | E100: Année d’obtention du diplôme d’enseignant | G100: =I29 -> 2023
C101: ê | E101: Effectif de la cohorte | F101: =I28 -> 50 | G101: Enseignants nouvellement diplômés | H101: =IF(H$56>=$G$100,MIN($F101,MAX(H95+G104-H98,0)),0) -> 0 | I101: 0 | J101: 0 | K101: 50 | L101: 50 | M101: 50 | N101: 50 | O101: 50 | P101: 32.1767657 | Q101: 0
C102: ê | G102: Nombre total d’enseignants recrutés | H102: =SUM(H97:H101) -> 499.5254438 | I102: =SUM(I97:I101) -> 220.4745562 | J102: 60 | K102: 110 | L102: 110 | M102: 110 | N102: 110 | O102: 110 | P102: 92.1767657 | Q102: 29.04
C103: ê | G103: Nombre total d’enseignants | H103: =H102+H96*(1-$G$94)-H110 -> 734.7254438 | I103: =H103*(1-$G$94)+I102-I110+H110 -> 940.5054911 | J103: 981.6953813 | K103: 1072.061474 | L103: 1130.620244 | M103: 1218.007839 | N103: 1303.647683 | O103: 1387.574729 | P103: 1452 | Q103: 1452
C104: ê | G104: Déficit en enseignants | H104: =H95-H102 -> 0 | I104: =MAX(I95-I102+H104,0) -> 333.2517319 | J104: 442.0618418 | K104: 409.9385263 | L104: 321.3797558 | M104: 233.9921607 | N104: 148.3523175 | O104: 64.42527112 | P104: 0 | Q104: 0
C105: ê | G105: Nombre total d’enseignants rémunérés selon les niveaux du DPE | H105: =H96*(1-$G$94)+H97+H98 -> 595.2 | I105: =I97+I98+H105*(1-$G$94)-I110 -> 643.296 | J105: 690.43008 | K105: 736.6214784 | L105: 751.8890488 | M105: 766.8512679 | N105: 781.5142425 | O105: 795.8839576 | P105: 809.9662785 | Q105: 792.8069529
C106: ê | G106: Nombre total d’enseignants rémunérés selon les niveaux du primaire | H106: =H101+H99 -> 139.5254438 | I106: =I101+I99+H106*(1-$G$94)+H110 -> 297.2094911 | J106: 291.2653013 | K106: 335.4399953 | L106: 378.7311954 | M106: 451.1565715 | N106: 522.13344 | O106: 591.6907712 | P106: 642.0337215 | Q106: 659.1930471
C107: ê | D107: Année donnant aux enseignants du DPE la possibilité de passer en catégorie supérieure | G107: =D24 -> 2024
C108: ê | D108: Proportion d’enseignants qui demanderont à passer en catégorie supérieure | G108: 0.75
C109: ê | D109: Nombre maximal d’enseignants pouvant passer dans la catégorie des enseignants diplômés chaque année | G109: 30
C110: ê | G110: Nombre d’enseignants suivant la formation diplômante en vue de passer en catégorie supérieure | H110: =IF(H56<$G$107,0,MIN($G$109,MAX(0,$G$108*($H$96+$F$97)-SUM(G110:$G$110)))) -> 0 | I110: =IF(I56<$G$107,0,MIN($G$109,MAX(0,$G$108*($H$96+$F$97)-SUM($G110:H$110)))) -> 0 | J110: =IF(J56<$G$107,0,MIN($G$109,MAX(0,$G$108*($H$96+$F$97)-SUM($G110:I$110)))) -> 0 | K110: =IF(K56<$G$107,0,MIN($G$109,MAX(0,$G$108*($H$96+$F$97)-SUM($G110:J$110)))) -> 0 | L110: =IF(L56<$G$107,0,MIN($G$109,MAX(0,$G$108*($H$96+$F$97)-SUM($G110:K$110)))) -> 30 | M110: =IF(M56<$G$107,0,MIN($G$109,MAX(0,$G$108*($H$96+$F$97)-SUM($G110:L$110)))) -> 30 | N110: =IF(N56<$G$107,0,MIN($G$109,MAX(0,$G$108*($H$96+$F$97)-SUM($G110:M$110)))) -> 30 | O110: =IF(O56<$G$107,0,MIN($G$109,MAX(0,$G$108*($H$96+$F$97)-SUM($G110:N$110)))) -> 30 | P110: =IF(P56<$G$107,0,MIN($G$109,MAX(0,$G$108*($H$96+$F$97)-SUM($G110:O$110)))) -> 30 | Q110: =IF(Q56<$G$107,0,MIN($G$109,MAX(0,$G$108*($H$96+$F$97)-SUM($G110:P$110)))) -> 30
C111: ê | D111: Augmentation annuelle du salaire des enseignants | G111: =I32 -> 0.02
C112: ê | E112: Début | F112: =E114 -> 23000 | G112: Salaire des enseignants du DPE disponibles | H112: =E114 -> 23000 | I112: =H112*(1+$G$111) -> 23460 | J112: 23929.2 | K112: 24407.784 | L112: 24895.93968 | M112: 25393.85847 | N112: 25901.73564 | O112: 26419.77036 | P112: 26948.16576 | Q112: 27487.12908
C113: ê | E113: Début | F113: =E115 -> 98072 | G113: Salaire des enseignants disponibles dans le primaire | H113: =E115 -> 98072 | I113: =H113*(1+$G$111) -> 100033.44 | J113: 102034.1088 | K113: 104074.791 | L113: 106156.2868 | M113: 108279.4125 | N113: 110445.0008 | O113: 112653.9008 | P113: 114906.9788 | Q113: 117205.1184
C114: Nombre d’enseignants spécialistes des soins et du développement de la petite enfance qui percevront un salaire annuel | E114: 23000 | F114: =E114*0.065371 -> 1503.533 | G114: Veuillez consulter les notes pour en savoir plus sur ces options. Le calcul des coûts se fera selon les options de construction présentées ci-dessus par rapport au nombre réel d’enseignants dans le système éducatif. | H114: =H112*H105 -> 13689600 | I114: =I112*I105 -> 15091724.16 | J114: 16521439.47 | K114: 17979297.93 | L114: 18718984.41 | M114: 19473312.57 | N114: 20242575.31 | O114: 21027071.39 | P114: 21827105.54 | Q114: 21791987.05 | R114: =SUM(H114:L114) -> 82001045.97 | S114: Il s’agit du salaire ACTUEL perçu par les enseignants spécialistes des soins et du développement de la petite enfance. Après examen, la division du Ministère de l’éducation chargée des soins et du développement de la petite enfance a proposé le salaire annuel de 23 000 rands (incluant notamment un treizième mois) Il est également intéressant de prévoir différents compléments ou primes destinés aux enseignants des zones rurales difficiles. Pour l’instant, la moitié des salaires perçus par les enseignants spécialistes des soins et du développement de la petite enfance correspondent au salaire actuel.
B115: 1.4.2 Salaire annuel d’un enseignant (assistant) des soins et du développement de la petite enfance par classe d’accueil préprimaire (sur la base du salaire des enseignants du primaire) | C115: Nombre d’enseignants spécialistes des soins et du développement de la petite enfance qui percevront un salaire annuel | E115: 98072 | F115: =E115*0.065371 -> 6411.064712 | H115: =H113*H106 -> 13683539.32 | I115: =I113*I106 -> 29730887.8 | J115: 29718995.44 | K115: 34910847.39 | L115: 40204697.39 | M115: 48850968.52 | N115: 57667028.19 | O115: 66656273.45 | P115: 73774155.23 | Q115: 77260799.12 | R115: =SUM(H115:L115) -> 148248967.4 | S115: D’après l’analyse du secteur de l’éducation, le salaire moyen d’un enseignant du primaire était de 98 072 rands sud-africains en 2018. Pour l’instant, la moitié des salaires perçus par les enseignants spécialistes des soins et du développement de la petite enfance correspondent au salaire revalorisé.
B116: 1.4.2 Orientation des chefs d’établissement sur les classes d’accueil préprimaire | C116: Nombre de chefs d’établissement qui recevront une orientation de 5 jours (lors de la mise en place/l’ouverture des classes d’accueil préprimaire) | E116: 2500 | F116: =E116*0.065371 -> 163.4275 | G116: Veuillez suivre les scénarios d’élargissement pour déterminer le nombre de chefs d’établissement formés chaque année. | H116: =$E116*(H92+H97) -> 1986813.609 | I116: =$E116*I92 -> 1347579.448 | J116: 375000 | K116: 145606.9424 | L116: 0 | M116: 0 | N116: 0 | O116: 0 | P116: 0 | Q116: 0 | R116: =SUM(H116:L116) -> 3855000 | S116: Le format (et le coût unitaire) de l’orientation fournie aux chefs d’établissement doivent être vérifiés auprès du Ministère de l’éducation. 5 jours ? 3 jours ? Dans les districts ou au niveau national ? Coût estimé ?
B117: 1.4.3 Recrutement d’un nouvel inspecteur spécialiste des soins et du développement de la petite enfance par district | C117: ê | D117: Année de recrutement de nouveaux inspecteurs | G117: =D30 -> 2021
C118: ê | G118: Nombre de nouveaux inspecteurs | H118: =IF(H$56>=$G117,$D$121,0) -> 0 | I118: 1 | J118: 1 | K118: 1 | L118: 1 | M118: 1 | N118: 1 | O118: 1 | P118: 1 | Q118: 1
C119: ê | D119: Augmentation annuelle du salaire des inspecteurs | G119: 0.02
C120: ê | G120: Salaire annuel des inspecteurs | H120: =E121 -> 100000 | I120: =H120*(1+$G$119) -> 102000 | J120: 104040 | K120: 106120.8 | L120: 108243.216 | M120: 110408.0803 | N120: 112616.2419 | O120: 114868.5668 | P120: 117165.9381 | Q120: 119509.2569
C121: Nombre d’inspecteurs qui seront recrutés au salaire annuel | D121: 1 | E121: 100000 | F121: =E121*0.065371 -> 6537.1 | G121: Dépenses courantes sur 5 ans (les recrutements se font de préférence la première année) | H121: =(H118+10)*H120 -> 1000000 | I121: =(I118+10)*I120 -> 1122000 | J121: 1144440 | K121: 1167328.8 | L121: 1190675.376 | M121: 1214488.884 | N121: 1238778.661 | O121: 1263554.234 | P121: 1288825.319 | Q121: 1314601.825 | R121: =SUM(G121:L121) -> 5624444.176 | S121: Le recrutement de deux nouveaux inspecteurs par district est-il suffisant pour superviser les classes d’accueil préprimaire ? Salaire annuel ? À vérifier.
B122: 1.4.3 Formation des inspecteurs spécialistes des soins et du développement de la petite enfance (en poste ou recrutés) | C122: Nombre d’inspecteurs qui devront être formés | E122: 2500 | F122: =E122*0.065371 -> 163.4275 | G122: Coût ponctuel ? | H122: =(IF(H55=1,10,0)+(H118-SUM(G118)))*$E$122 -> 25000 | I122: 2500 | J122: 0 | K122: 0 | L122: 0 | M122: 0 | N122: 0 | O122: 0 | P122: 0 | Q122: 0 | R122: =SUM(G122:L122) -> 27500
B123: 1.4.4 Formation continue de tous les nouveaux enseignants des classes d’accueil préprimaire | C123: ê | D123: Nombre de jours de formation continue de longue durée | G123: =D34 -> 20
C124: ê | G124: Nombre d’enseignants suivant une formation continue de longue durée | H124: =H99 -> 139.5254438 | I124: =I99 -> 160.4745562 | J124: 0 | K124: 0 | L124: 0 | M124: 0 | N124: 0 | O124: 0 | P124: 0 | Q124: 0
C125: Nombre d’enseignants qui participeront à un atelier de 20 jours sur l’EPE | E125: =G123*500 -> 10000 | F125: =E125*0.065371 -> 653.71 | G125: Veuillez suivre les scénarios d’élargissement pour déterminer le nombre de chefs d’établissement formés chaque année. | H125: =H124*$E125 -> 1395254.438 | I125: 1604745.562 | J125: 0 | K125: 0 | L125: 0 | M125: 0 | N125: 0 | O125: 0 | P125: 0 | Q125: 0 | R125: =SUM(H125:L125) -> 3000000
B126: 1.4.4 Formation continue de tous les enseignants des classes d’accueil préprimaire actuellement en poste ou nouvellement recrutés | C126: ê | D126: Pourcentage d’enseignants suivant une formation continue chaque année | G126: =D32 -> 0.2
C127: ê | D127: Nombre de jours de formation continue régulière | G127: =D33 -> 5
C128: ê | G128: Nombre d’enseignants suivant une formation continue de courte durée | H128: =H97 -> 300 | I128: =H98+$G$126*H103 -> 206.9450888 | J128: =I98+$G$126*I103 -> 248.1010982 | K128: 256.3390763 | L128: 274.4122947 | M128: 286.1240488 | N128: 303.6015679 | O128: 320.7295365 | P128: 337.5149458 | Q128: 350.4
C129: Nombre d’enseignants qui participeront à un atelier de 5 jours sur l’EPE | E129: =G127*500 -> 2500 | F129: =E129*0.065371 -> 163.4275 | G129: Veuillez suivre les scénarios d’élargissement pour déterminer le nombre de chefs d’établissement formés chaque année. | H129: =H128*$E129 -> 750000 | I129: 517362.7219 | J129: 620252.7456 | K129: 640847.6907 | L129: 686030.7368 | M129: 715310.1221 | N129: 759003.9197 | O129: 801823.8413 | P129: 843787.3644 | Q129: 876000 | R129: =SUM(H129:L129) -> 3214493.895 | S129: Hypothèse : 50 % des enseignants doivent recevoir une nouvelle orientation et suivre une formation continue d’un mois. Hypothèse : 50 % des enseignants doivent suivre une remise à niveau d’une semaine.
B130: 1.4.4 Formation continue de tous les nouveaux enseignants des classes d’accueil préprimaire | C130: ê | D130: Nombre de jours de formation continue de courte durée | G130: 2
C131: ê | D131: Année de mise en place du nouveau programme scolaire | G131: 2021
C132: ê | G132: Nombre d’enseignants suivant une formation continue de courte durée | H132: =IF(H56<$G$131,0,IF(H56=$G$131,H103,H102)) -> 0 | I132: =IF(I56<$G$131,0,IF(I56=$G$131,I103,I102)) -> 940.5054911 | J132: 60 | K132: 110 | L132: 110 | M132: 110 | N132: 110 | O132: 110 | P132: 92.1767657 | Q132: 29.04
C133: Nombre d’enseignants qui participeront à un atelier de 2 jours sur l’EPE | E133: =G130*500 -> 1000 | F133: =E133*0.065371 -> 65.371 | G133: Veuillez suivre les scénarios d’élargissement pour déterminer le nombre de chefs d’établissement formés chaque année. | H133: =H132*$E133 -> 0 | I133: 940505.4911 | J133: 60000 | K133: 110000 | L133: 110000 | M133: 110000 | N133: 110000 | O133: 110000 | P133: 92176.7657 | Q133: 29040 | R133: =SUM(H133:L133) -> 1220505.491
B134: 1.4.5 Orientation du responsable de la planification et des normes au niveau du district sur les classes d’accueil préprimaire/l’EPE | C134: ê | D134: Année de formation du personnel de district | G134: 2020
C135: Nombre de membres du personnel d’éducation des districts qui recevront une orientation sur l’EPE (2 jours ?) | E135: 1000 | F135: =E135*0.065371 -> 65.371 | G135: Coût ponctuel (année 1 ou 2) | H135: =IF(H56=$G$134,$E$135*20,0) -> 20000 | I135: 0 | J135: 0 | K135: 0 | L135: 0 | M135: 0 | N135: 0 | O135: 0 | P135: 0 | Q135: 0 | R135: =SUM(H135:L135) -> 20000 | S135: Le format (et le coût unitaire) de l’orientation fournie au personnel d’éducation des districts doivent être vérifiés auprès du Ministère de l’éducation. 5 jours ? 3 jours ? Dans les districts ou au niveau national ? Coût estimé ?
B136: 1.4.6 Recrutement du personnel de direction de l’enseignement préprimaire (salaire annuel) | C136: Nombre de responsables de l’EPE | E136: 150000 | F136: =E136*0.065371 -> 9805.65 | G136: Dépenses courantes (salaire du responsable de l’EPE) | H136: =$E$136 -> 150000 | I136: 150000 | J136: 150000 | K136: 150000 | L136: 150000 | M136: 150000 | N136: 150000 | O136: 150000 | P136: 150000 | Q136: 150000 | R136: =SUM(H136:L136) -> 750000
A137: 1.5 Élargir le programme d’alimentation scolaire | B137: 1.5.1. Élargissement du programme d’alimentation scolaire aux classes d’accueil préprimaire | C137: ê | D137: Nombre d’enfants par classe d’accueil préprimaire | G137: =D13 -> 23
C138: ê | G138: Nombre d’enfants scolarisés en classe d’accueil préprimaire | H138: =H103*$G$137 -> 16898.68521 | I138: =I103*$G$137 -> 21631.6263 | J138: 22578.99377 | K138: 24657.41389 | L138: 26004.26562 | M138: 28014.1803 | N138: 29983.8967 | O138: 31914.21876 | P138: 33396 | Q138: 33396
C139: Nombre d’enfants bénéficiant du programme d’alimentation scolaire chaque année (23 par classe d’accueil préprimaire) | E139: 900 | F139: =E139*0.065371 -> 58.8339 | G139: Dépenses courantes sur 5 ans | H139: =H138*$E$139 -> 15208816.69 | I139: 19468463.67 | J139: 20321094.39 | K139: 22191672.51 | L139: 23403839.05 | M139: 25212762.27 | N139: 26985507.03 | O139: 28722796.89 | P139: 30056400 | Q139: 30056400 | R139: =SUM(H139:L139) -> 100593886.3 | S139: 5 rands sud-africains par enfant et par jour (coût actuel de l’alimentation scolaire) et 180 jours d’école par an : 5 x 180 = 900 rands sud-africains par enfant pour une année. L’idéal serait de porter ce coût à 7 rands sud-africains par enfant et par jour. | V139: 40 | W139: =T139*U139*V139 -> 0
A140: COÛT TOTAL = | H140: =SUMIF($C61:$C139,"<>ê",H61:H139) -> 146194143.5 | I140: 187313160 | J140: 133768817.4 | K140: 102960733.8 | L140: 84958864.9 | M140: 96006292.36 | N140: 107432343.1 | O140: 119010969.8 | P140: 128311900.2 | Q140: 131758278 | R140: 655195719.6
F141: En dollars É-U | H141: =H140*0.065371 -> 9556857.356 | I141: =I140*0.065371 -> 12244848.58 | J141: =J140*0.065371 -> 8744601.364 | K141: =K140*0.065371 -> 6730646.128 | L141: =L140*0.065371 -> 5553845.957 | R141: =SUM(H141:L141) -> 42830799.39
H142: Année 1 2020-2021 | I142: Année 2 2021-2022 | J142: Année 3 2022-2023 | K142: Année 4 2023-2024 | L142: Année 5 2024-2025 | R142: Coût total (en rands sud-africains)
F144: Dépenses d’investissement | G144: Infrastructures | H144: =H62+H68+H74+H79 -> 93670881.66 | I144: 112190929.9 | J144: 63200000 | K144: 24845480.76 | L144: 215187.929 | M144: 0 | N144: 0 | O144: 0 | P144: 0 | Q144: 0 | R144: 294122480.2
G145: Équipement | H145: =H83+H88+H91 -> 4614237.811 | I145: 5146461.223 | J145: 1657595.375 | K145: 819651.7562 | L145: 279450 | M145: 279450 | N145: 279450 | O145: 279450 | P145: 279450 | Q145: 279450 | R145: 12517396.16
G146: Total des dépenses d’investissement | H146: =SUM(H144:H145) -> 98285119.47 | I146: =SUM(I144:I145) -> 117337391.1 | J146: 64857595.38 | K146: 25665132.52 | L146: 494637.929 | M146: 279450 | N146: 279450 | O146: 279450 | P146: 279450 | Q146: 279450 | R146: 306639876.4
F147: Dépenses courantes | G147: Salaires | H147: =H114+H115+H136+H121 -> 28523139.32 | I147: 46094611.96 | J147: 47534874.91 | K147: 54207474.13 | L147: 60264357.18 | M147: 69688769.97 | N147: 79298382.16 | O147: 89096899.07 | P147: 97040086.09 | Q147: 100517388 | R147: 236624457.5
G148: Formation | H148: =H135+H133+H129+H122+H116 -> 2781813.609 | I148: 2807947.661 | J148: 1055252.746 | K148: 896454.633 | L148: 796030.7368 | M148: 825310.1221 | N148: 869003.9197 | O148: 911823.8413 | P148: 935964.1301 | Q148: 905040 | R148: 8337499.386
G149: Programme d’alimentation scolaire | H149: =H139 -> 15208816.69 | I149: =I139 -> 19468463.67 | J149: 20321094.39 | K149: 22191672.51 | L149: 23403839.05 | M149: 25212762.27 | N149: 26985507.03 | O149: 28722796.89 | P149: 30056400 | Q149: 30056400 | R149: 100593886.3
G150: Total des dépenses courantes | H150: =SUM(H147:H149) -> 46513769.62 | I150: 68371023.29 | J150: 68911222.05 | K150: 77295601.27 | L150: 84464226.97 | M150: 95726842.36 | N150: 107152893.1 | O150: 118731519.8 | P150: 128032450.2 | Q150: 131478828 | R150: 345555843.2
G151: Total | H151: =H150+H146 -> 144798889.1 | I151: =I150+I146 -> 185708414.4 | J151: 133768817.4 | K151: 102960733.8 | L151: 84958864.9 | M151: 96006292.36 | N151: 107432343.1 | O151: 119010969.8 | P151: 128311900.2 | Q151: 131758278 | R151: 652195719.6
G153: Total en pourcentage du budget d’éducation 2018-2019 | H153: =H151/1000000/3128 -> 0.04629120495 | I153: 0.0593696977 | J153: 0.04276496721 | K153: 0.03291583561 | L153: 0.02716076244 | M153: 0.03069254871 | N153: 0.03434537823 | O153: 0.03804698523 | P153: 0.04102042846 | Q153: 0.04212221164 | R153: 0.2085024679
G154: Budget courant consacré au DPE en pourcentage du budget | H154: =240*$E$114/3128/1000000 -> 0.001764705882 | I154: 0.001764705882 | J154: 0.001764705882 | K154: 0.001764705882 | L154: 0.001764705882 | M154: 0.001764705882 | N154: 0.001764705882 | O154: 0.001764705882 | P154: 0.001764705882 | Q154: 0.001764705882 | R154: 0.001764705882
G156: 9080
G157: 20192020 | H157: 20202021 | I157: 20212022 | J157: 20222023 | K157: 20232024 | L157: 20242025 | M157: 20252026 | N157: 20262027 | O157: 20272028 | P157: 20282029 | Q157: 20292030
G158: 2019 | H158: 2020 | I158: 2021 | J158: 2022 | K158: 2023 | L158: 2024 | M158: 2025 | N158: 2026 | O158: 2027 | P158: 2028 | Q158: 2029
F159: Population en milliers d’habitants (Source : projection de variation moyenne de la population établie par l’ONU et actualisée en 2017) | G159: 56.647 | H159: 57.107 | I159: 57.567 | J159: 57.726 | K159: 57.681 | L159: 57.584 | M159: 57.623 | N159: 57.609 | O159: 57.528 | P159: 57.393 | Q159: 57.213
G160: 20192020 | H160: 20202021 | I160: 20212022 | J160: 20222023 | K160: 20232024 | L160: 20242025 | M160: 20252026 | N160: 20262027 | O160: 20272028 | P160: 20282029 | Q160: 20292030
F161: Effectifs scolarisés en classe d’accueil préprimaire | G161: =23*240 -> 5520 | H161: =H138 -> 16898.68521 | I161: =I138 -> 21631.6263 | J161: =J138 -> 22578.99377 | K161: 24657.41389 | L161: 26004.26562 | M161: 28014.1803 | N161: 29983.8967 | O161: 31914.21876 | P161: 33396 | Q161: =Q138 -> 33396
C162: Croissance annuelle des effectifs dans l’enseignement privé | D162: 0.05 | F162: Effectifs scolarisés dans l’enseignement privé | G162: =G156 -> 9080 | H162: =G162*(1+$D$162) -> 9534 | I162: =H162*(1+$D$162) -> 10010.7 | J162: 10511.235 | K162: 11036.79675 | L162: 11588.63659 | M162: 12168.06842 | N162: 12776.47184 | O162: 13415.29543 | P162: 14086.0602 | Q162: 14790.36321
F163: Total des effectifs scolarisés | G163: =23*240+G156 -> 14600 | H163: =H138+H162 -> 26432.68521 | I163: 31642.3263 | J163: 33090.22877 | K163: 35694.21064 | L163: 37592.9022 | M163: 40182.24872 | N163: 42760.36854 | O163: 45329.51419 | P163: 47482.0602 | Q163: 48186.36321
F164: Scolarisation en classe d’accueil préprimaire en pourcentage de la population d’enfants de 5 ans | G164: =G161/G$159/1000 -> 0.09744558406 | H164: =H161/H$159/1000 -> 0.2959126763 | I164: =I161/I$159/1000 -> 0.3757643493 | J164: =J161/J$159/1000 -> 0.3911407991 | K164: 0.42747896 | L164: 0.451588386 | M164: 0.4861631693 | N164: 0.5204724383 | O164: 0.5547597477 | P164: 0.581882808 | Q164: 0.5837134917
F165: Taux brut de scolarisation | G165: =G163/G$159/1000 -> 0.2577365086 | H165: =H163/H$159/1000 -> 0.4628624373 | I165: =I163/I$159/1000 -> 0.5496608525 | J165: =J163/J$159/1000 -> 0.5732291995 | K165: 0.6188209401 | L165: 0.6528358955 | M165: 0.697330037 | N165: 0.7422515325 | O165: 0.7879556771 | P165: 0.8273144844 | Q165: 0.8422275219
G167: 20192020 | H167: 20202021 | I167: 20212022 | J167: 20222023 | K167: 20232024 | L167: 20242025 | M167: 20252026 | N167: 20262027 | O167: 20272028 | P167: 20282029 | Q167: 20292030
D168: Pourcentage d’enfants de 5 ans scolarisés : | F168: En classe d’accueil préprimaire | G168: =G164 -> 0.09744558406 | H168: 0.2959126763 | I168: 0.3757643493 | J168: 0.3911407991 | K168: 0.42747896 | L168: 0.451588386 | M168: 0.4861631693 | N168: 0.5204724383 | O168: 0.5547597477 | P168: 0.581882808 | Q168: 0.5837134917
F169: Effectifs scolarisés dans l’enseignement privé | G169: =G162/G159/1000 -> 0.1602909245 | H169: =H162/H159/1000 -> 0.166949761 | I169: 0.1738965032 | J169: 0.1820884004 | K169: 0.19134198 | L169: 0.2012475095 | M169: 0.2111668677 | N169: 0.2217790942 | O169: 0.2331959295 | P169: 0.2454316764 | Q169: 0.2585140302
F170: Non scolarisés | G170: =1-G168-G169 -> 0.7422634914 | H170: 0.5371375627 | I170: 0.4503391475 | J170: 0.4267708005 | K170: 0.3811790599 | L170: 0.3471641045 | M170: 0.302669963 | N170: 0.2577484675 | O170: 0.2120443229 | P170: 0.1726855156 | Q170: 0.1577724781

Sheet Classes d’acc. préprim. – 5 ans
B3: Options de scénario | G3: Hypothèses
B5: Nombre d’années prévues pour déployer les classes d’accueil préprimaire | D5: 5 | F5: Nombre d’écoles dotées d’une classe d’accueil préprimaire | I5: =Overview!D35 -> 240
F6: Nombre d’écoles ne possédant pas de classe d’accueil préprimaire | I6: =Overview!D38 -> 1242
B7: Nombre d’années prévues pour mettre aux normes les salles d’accueil préprimaire existantes | D7: 2 | F7: Nombre d’écoles disposant de salles de classe pouvant être transformées en classes d’accueil préprimaire | I7: =Overview!D40 -> 489.4508876
B8: Nombre d’années prévues pour rendre opérationnelles les salles de classe disponibles | D8: 2 | F8: Nombre de salles de classes qui seront construites | I8: =I6-I7 -> 752.5491124
B10: Nombre d’années prévues pour installer les préfabriqués | D10: 3 | F10: Nombre de préfabriqués pouvant être installés chaque année | I10: 75
B11: Nombre d’années avant la construction de nouvelles salles | D11: 0 | F11: Nombre de salles de classe pouvant être construites la première année | I11: 100
F12: Nombre maximal de salles de classe pouvant être construites en une année | I12: 150
B13: Nombre d’enfants par classe d’accueil préprimaire | D13: 23 | F13: Nombre de salles de classe pouvant être rénovées chaque année | I13: 50
F14: Proportion de salles de classe disponibles qui seront rénovées | I14: 0.33
B15: Remplacement des préfabriqués par des salles de classe permanentes | D15: Non | F15: Pourcentage de classes d’accueil préprimaire existantes nécessitant : | H15: une rénovation | I15: 0.25
F16: Proportion of existing RCs needing: | H16: WASH facilities | I16: 0
F17: Proportion of existing RCs needing: | H17: furniture | I17: 0
F18: Proportion of existing RCs needing: | H18: TLM | I18: 0
F19: Proportion of existing RCs needing: | H19: outdoor play materials | I19: 0
F20: Pourcentage de salles de classe disponibles nécessitant des installations EAH | I20: 0.75
F21: Pourcentage de nouvelles salles de classe nécessitant des installations EAH | I21: 0.9
F22: Pourcentage de nouvelles salles de classe devant être équipées en mobilier | I22: 0.9
B24: Année donnant aux enseignants du DPE la possibilité de passer en catégorie supérieure | D24: 2024 | F24: Taux d’attrition parmi les enseignants du DPE | I24: 0.02
F25: Nombre de nouveaux enseignants du DPE disponibles | I25: 300
F26: Nombre d’enseignants disponibles dans le primaire pouvant être formés à l’EPE | I26: 300
F27: Effectif de la cohorte d’enseignants certifiés en DPE | I27: 60
F28: Effectif de la cohorte d’enseignants diplômés en DPE (à compter de 2023) | I28: 50
F29: Année d’obtention du diplôme d’enseignant en DPE | I29: 2023
B30: Année de recrutement de nouveaux inspecteurs | D30: 2021 | F30: Proportion d’enseignants du DPE qui demanderont à passer en catégorie supérieure | I30: 0.5
F31: Nombre maximal d’enseignants pouvant passer dans la catégorie des enseignants diplômés chaque année | I31: 30
B32: Pourcentage d’enseignants suivant une formation continue chaque année | D32: 0.2 | F32: Augmentation annuelle du salaire des enseignants | I32: 0.02
B33: Nombre de jours de formation continue de courte durée | D33: 5 | F33: Augmentation annuelle du salaire des inspecteurs | I33: 0.02
B34: Nombre de jours de formation continue de longue durée | D34: 20 | F34: Pourcentage d’enseignants en poste nécessitant une formation continue de longue durée | I34: 0.35
A36: ="Résultats - Coût total sur "&D5&" ans : "&TEXT(SUM(H140:OFFSET(G140,0,D5))/1000000,"#,##0") & " millions de rands sud-africains" -> Résultats - Coût total sur 5 ans : 636 millions de rands sud-africains
A37: Coûts totaux | D37: Déficit en salles de classe et en enseignants | H37: Effectifs et taux de scolarisation
D54: ="Year when there are enough teachers for all classrooms opened : "& CEILING(IF(Q104=0,IF(P104=0,IF(O104=0,IF(N104=0,IF(M104=0,IF(L104=0,IF(K104=0,IF(J104=0, IF(I104=0,IF(H104=0,H56,I56),J56),K56),L56),M56),N56),O56),P56),Q56),Q56+Q104/(Q101+Q98)),1) -> Year when there are enough teachers for all classrooms opened : 2028
H55: 1 | I55: 2 | J55: 3 | K55: 4 | L55: 5 | M55: 6 | N55: 7 | O55: 8 | P55: 9 | Q55: 10
A56: Déploiement de l’EPE à grande échelle : doter chaque école primaire d’une classe d’accueil préprimaire (sur 5 ans) | H56: 2020 | I56: =H56+1 -> 2021 | J56: =I56+1 -> 2022 | K56: =J56+1 -> 2023 | L56: 2024 | M56: 2025 | N56: 2026 | O56: 2027 | P56: 2028 | Q56: 2029
A57: Objectifs stratégiques | B57: Activités | C57: Unité des produits attendus | D57: Nombre d’unités | E57: Coût unitaire (en rand sud-africain) | F57: Coût unitaire (en dollars É-U) | H57: Coût annuel (en milliers de rands sud-africains) | R57: Coût total sur les 5 premières années (en rands sud-africains) | S57: Hypothèses
G58: Scénarios de déploiement | H58: ="Année "& H55 & " " & 2019+H55 & " - " & 2020+H55 -> Année 1 2020 - 2021 | I58: Année 2 2021 - 2022 | J58: Année 3 2022 - 2023 | K58: Année 4 2023 - 2024 | L58: Année 5 2024 - 2025 | M58: Année 6 2025 - 2026 | N58: Année 7 2026 - 2027 | O58: Année 8 2027 - 2028 | P58: Année 9 2028 - 2029 | Q58: Année 10 2029 - 2030
A59: 1.1 Garantir des infrastructures adaptées aux besoins des enfants et sûres pour mettre en place des classes d’accueil préprimaire | B59: 1.1.1 Construction de nouvelles classes d’accueil préprimaire | C59: ê | D59: Nombre maximal de préfabriqués installés chaque année | G59: =I10 -> 75 | R59: =SUM(G59:L59) -> 75
C60: ê | D60: Nombre d’années prévues pour installer les préfabriqués | G60: =D10 -> 3 | R60: =SUM(G60:L60) -> 3
C61: ê | G61: Nombre de préfabriqués qui seront installés | H61: =IF(H$55<=$G$60,$G$59,0) -> 75 | I61: 75 | J61: 75 | K61: 0 | L61: 0 | M61: 0 | N61: 0 | O61: 0 | P61: 0 | Q61: 0
C62: Nombre de classes d’accueil préprimaire préfabriquées qui seront mises en place (hors TVA, transport et installation) Nombre de classes d’accueil préprimaire préfabriquées qui seront mises en place (TVA, transport ou installation inclus) | D62: 758 | E62: 300000 | F62: =E62*0.065371 -> 19611.3 | G62: Une première option consiste à chiffrer le coût des préfabriqués pour les deux premières années seulement, avant de chiffrer la construction pour les années 3 à 5. Une deuxième option consiste à chiffrer le coût des préfabriqués pour 5 années, mais compte tenu des coûts que cela représente cette solution est peu pertinente. | H62: =$E62*H61 -> 22500000 | I62: =$E62*I61 -> 22500000 | J62: =$E62*J61/1000000 -> 22.5 | K62: 0 | L62: 0 | M62: 0 | N62: 0 | O62: 0 | P62: 0 | Q62: 0 | R62: =SUM(H62:L62) -> 45000022.5 | S62: Il s’agit du coût exact d’une salle de classe préfabriquée de 7 mètres x 7 mètres pouvant accueillir jusqu’à 50 enfants, comme en produit la société sud-africaine Kwikspace. Ce coût inclut l’estimation de la TVA, du transport et de l’installation éventuelle.
C63: ê | D63: Nombre de constructions la première année | G63: =I11 -> 100 | R63: =SUM(G63:L63) -> 100
C64: ê | D64: Nombre maximal de constructions annuelles | G64: =I12 -> 150 | R64: =SUM(G64:L64) -> 150
C65: ê | D65: Taux d’augmentation du nombre de constructions annuelles | G65: =IF(incr_rate(G63,($D$5-$D$11),I8-SUM(H61:Q61))<0,0, incr_rate(G63,($D$5-$D$11),I8-SUM(H61:Q61))) -> 0.02682036408 | R65: =SUM(G65:L65) -> 0.02682036408
C66: ê | G66: Nombre de nouvelles constructions | H66: =IF(H$55<=$D$11,0, IF($G$63*(1+$G$65)^(G$55-$D$11)<=$G$64, IF(H$55>$D$5,0,$G$63*(1+$G$65)^(G$55-$D$11)), MIN($G$64,MAX(0,$I$8-SUM($H$61:$Q$61)-SUM($G66:G$66))))) -> 100 | I66: =IF(I$55<=$D$11,0, IF($G$63*(1+$G$65)^(H$55-$D$11)<=$G$64, IF(I$55>$D$5,0,$G$63*(1+$G$65)^(H$55-$D$11)), MIN($G$64,MAX(0,$I$8-SUM($H$61:$Q$61)-SUM($G66:H$66))))) -> 102.6820364 | J66: =IF(J$55<=$D$11,0, IF($G$63*(1+$G$65)^(I$55-$D$11)<=$G$64, IF(J$55>$D$5,0,$G$63*(1+$G$65)^(I$55-$D$11)), MIN($G$64,MAX(0,$I$8-SUM($H$61:$Q$61)-SUM($G66:I$66))))) -> 105.436006 | K66: =IF(K$55<=$D$11,0, IF($G$63*(1+$G$65)^(J$55-$D$11)<=$G$64, IF(K$55>$D$5,0,$G$63*(1+$G$65)^(J$55-$D$11)), MIN($G$64,MAX(0,$I$8-SUM($H$61:$Q$61)-SUM($G66:J$66))))) -> 108.2638381 | L66: =IF(L$55<=$D$11,0, IF($G$63*(1+$G$65)^(K$55-$D$11)<=$G$64, IF(L$55>$D$5,0,$G$63*(1+$G$65)^(K$55-$D$11)), MIN($G$64,MAX(0,$I$8-SUM($H$61:$Q$61)-SUM($G66:K$66))))) -> 111.1675136 | M66: =IF(M$55<=$D$11,0, IF($G$63*(1+$G$65)^(L$55-$D$11)<=$G$64, IF(M$55>$D$5,0,$G$63*(1+$G$65)^(L$55-$D$11)), MIN($G$64,MAX(0,$I$8-SUM($H$61:$Q$61)-SUM($G66:L$66))))) -> 0 | N66: =IF(N$55<=$D$11,0, IF($G$63*(1+$G$65)^(M$55-$D$11)<=$G$64, IF(N$55>$D$5,0,$G$63*(1+$G$65)^(M$55-$D$11)), MIN($G$64,MAX(0,$I$8-SUM($H$61:$Q$61)-SUM($G66:M$66))))) -> 0 | O66: =IF(O$55<=$D$11,0, IF($G$63*(1+$G$65)^(N$55-$D$11)<=$G$64, IF(O$55>$D$5,0,$G$63*(1+$G$65)^(N$55-$D$11)), MIN($G$64,MAX(0,$I$8-SUM($H$61:$Q$61)-SUM($G66:N$66))))) -> 0 | P66: =IF(P$55<=$D$11,0, IF($G$63*(1+$G$65)^(O$55-$D$11)<=$G$64, IF(P$55>$D$5,0,$G$63*(1+$G$65)^(O$55-$D$11)), MIN($G$64,MAX(0,$I$8-SUM($H$61:$Q$61)-SUM($G66:O$66))))) -> 0 | Q66: =IF(Q$55<=$D$11,0, IF($G$63*(1+$G$65)^(P$55-$D$11)<=$G$64, IF(Q$55>$D$5,0,$G$63*(1+$G$65)^(P$55-$D$11)), MIN($G$64,MAX(0,$I$8-SUM($H$61:$Q$61)-SUM($G66:P$66))))) -> 0
C67: ê | G67: Nombre de constructions en remplacement des préfabriqués | H67: =IF($D$15="Yes",IF(H66=0,MIN(MAX($H$66:$Q$66),SUM($H$61:$Q$61)-SUM(G67:$G$67)),0),0) -> 0 | I67: =IF($D$15="Yes",IF(I66=0,MIN(MAX($H$66:$Q$66),SUM($H$61:$Q$61)-SUM($G67:H$67)),0),0) -> 0 | J67: =IF($D$15="Yes",IF(J66=0,MIN(MAX($H$66:$Q$66),SUM($H$61:$Q$61)-SUM($G67:I$67)),0),0) -> 0 | K67: =IF($D$15="Yes",IF(K66=0,MIN(MAX($H$66:$Q$66),SUM($H$61:$Q$61)-SUM($G67:J$67)),0),0) -> 0 | L67: =IF($D$15="Yes",IF(L66=0,MIN(MAX($H$66:$Q$66),SUM($H$61:$Q$61)-SUM($G67:K$67)),0),0) -> 0 | M67: =IF($D$15="Yes",IF(M66=0,MIN(MAX($H$66:$Q$66),SUM($H$61:$Q$61)-SUM($G67:L$67)),0),0) -> 0 | N67: =IF($D$15="Yes",IF(N66=0,MIN(MAX($H$66:$Q$66),SUM($H$61:$Q$61)-SUM($G67:M$67)),0),0) -> 0 | O67: =IF($D$15="Yes",IF(O66=0,MIN(MAX($H$66:$Q$66),SUM($H$61:$Q$61)-SUM($G67:N$67)),0),0) -> 0 | P67: =IF($D$15="Yes",IF(P66=0,MIN(MAX($H$66:$Q$66),SUM($H$61:$Q$61)-SUM($G67:O$67)),0),0) -> 0 | Q67: =IF($D$15="Yes",IF(Q66=0,MIN(MAX($H$66:$Q$66),SUM($H$61:$Q$61)-SUM($G67:P$67)),0),0) -> 0
C68: Nombre de classes d’accueil préprimaire permanentes qui seront construites (hors TVA, transport et installation) | D68: 0 | E68: 400000 | F68: =E68*0.065371 -> 26148.4 | G68: Une seule option ici (veuillez consulter les notes pour connaître les autres possibilités). | H68: =(H66+H67)*$E$68 -> 40000000 | I68: 41072814.56 | J68: 42174402.4 | K68: 43305535.23 | L68: 44467005.45 | M68: 0 | N68: 0 | O68: 0 | P68: 0 | Q68: 0 | R68: =SUM(H68:L68) -> 211019757.7 | S68: Estimation réalisée à partir des données financières communiquées par la division chargée des soins et du développement de la petite enfance ; le coût de construction d’un ensemble de 2 classes étant de 700 000 rands sud-africains, le coût d’une classe a été estimé à 400 000 rands sud-africains.
B69: 1.1.2 Transformation des salles de classe primaire en salles d’accueil préprimaire | C69: ê | D69: Capacité annuelle de rénovation | G69: =I13 -> 50 | R69: =SUM(G69:L69) -> 50
C70: ê | D70: Pourcentage de classes d’accueil préprimaire existantes nécessitant une rénovation | G70: =I15 -> 0.25 | R70: =SUM(G70:L70) -> 0.25
C71: ê | G71: Nombre de salles d’accueil préprimaire à rénover | H71: =MIN($G$69,MAX($I$5*$G70-SUM(G71:$G$71),0)) -> 50 | I71: =MIN($G$69,MAX($I$5*$G70-SUM($G71:H$71),0)) -> 10 | J71: =MIN($G$69,MAX($I$5*$G70-SUM($G71:I$71),0)) -> 0 | K71: =MIN($G$69,MAX($I$5*$G70-SUM($G71:J$71),0)) -> 0 | L71: =MIN($G$69,MAX($I$5*$G70-SUM($G71:K$71),0)) -> 0 | M71: =MIN($G$69,MAX($I$5*$G70-SUM($G71:L$71),0)) -> 0 | N71: =MIN($G$69,MAX($I$5*$G70-SUM($G71:M$71),0)) -> 0 | O71: =MIN($G$69,MAX($I$5*$G70-SUM($G71:N$71),0)) -> 0 | P71: =MIN($G$69,MAX($I$5*$G70-SUM($G71:O$71),0)) -> 0 | Q71: =MIN($G$69,MAX($I$5*$G70-SUM($G71:P$71),0)) -> 0
C72: ê | D72: Pourcentage de salles de classe disponibles qui seront rénovées | G72: =I14 -> 0.33 | R72: =SUM(G72:L72) -> 0.33
C73: ê | G73: Nombre de salles de classe disponibles qui seront rénovées | H73: =MIN($G$69-H71,MAX($I$7*$G72-SUM(G$73:$G73),0)) -> 0 | I73: =MIN($G$69-I71,MAX($I$7*$G72-SUM($G$73:H73),0)) -> 40 | J73: =MIN($G$69-J71,MAX($I$7*$G72-SUM($G$73:I73),0)) -> 50 | K73: =MIN($G$69-K71,MAX($I$7*$G72-SUM($G$73:J73),0)) -> 50 | L73: =MIN($G$69-L71,MAX($I$7*$G72-SUM($G$73:K73),0)) -> 21.5187929 | M73: =MIN($G$69-M71,MAX($I$7*$G72-SUM($G$73:L73),0)) -> 0 | N73: =MIN($G$69-N71,MAX($I$7*$G72-SUM($G$73:M73),0)) -> 0 | O73: =MIN($G$69-O71,MAX($I$7*$G72-SUM($G$73:N73),0)) -> 0 | P73: =MIN($G$69-P71,MAX($I$7*$G72-SUM($G$73:O73),0)) -> 0 | Q73: =MIN($G$69-Q71,MAX($I$7*$G72-SUM($G$73:P73),0)) -> 0
C74: Nombre de salles de classe primaires transformées en classes d’accueil préprimaire | D74: 485 | E74: 10000 | F74: =E74*0.065371 -> 653.71 | G74: Nous devons supposer qu’au moins un tiers des salles de classe que nous considérons comme disponibles ne sont en fait pas utilisables, c’est pourquoi nous conseillons de les intégrer au budget prévu pour les préfabriqués. | H74: =(H71+H73)*$E74 -> 500000 | I74: 500000 | J74: 500000 | K74: 500000 | L74: 215187.929 | M74: 0 | N74: 0 | O74: 0 | P74: 0 | Q74: 0 | R74: =SUM(H74:L74) -> 2215187.929 | S74: Le Ministère de l’éducation et de la formation utilise une subvention de 5 maloti par enfant pour rénover/réhabiliter les infrastructures. Pour une salle accueillant 23 enfants, cette subvention est de 115 000 rands par classe d’accueil préprimaire.
B75: 1.1.3 Mise en place d’installations EAH adaptées aux besoins des enfants | C75: ê | D75: Pourcentage de salles de classe disponibles nécessitant des installations EAH | G75: =I20 -> 0.75 | R75: =SUM(G75:L75) -> 0.75
C76: ê | D76: Pourcentage de nouvelles salles de classe nécessitant des installations EAH | G76: =I21 -> 0.9 | R76: =SUM(G76:L76) -> 0.9
C77: ê | D77: Percentage of existing RCs needing WASH facilities | G77: =I16 -> 0 | R77: =SUM(G77:L77) -> 0
C78: ê | G78: Nombre d’installations EAH qui seront construites | H78: =$G$76*(H$61+H$66)+IF(H$55<=$D$7,$G77*IFERROR($I$5/$D$7,0),0)+IF(H$55<=$D$8,$G$75*IFERROR($I$7/$D$8,0),0) -> 341.0440828 | I78: 343.4579156 | J78: 162.3924054 | K78: 97.43745427 | L78: 100.0507623 | M78: 0 | N78: 0 | O78: 0 | P78: 0 | Q78: 0
C79: Nombre de blocs sanitaires installés (toilettes + poste de lavage des mains) | D79: 0 | E79: 20000 | F79: =E79*0.065371 -> 1307.42 | G79: Pour chaque nouvelle salle de classe ou salle de classe rénovée | H79: =H78*$E79 -> 6820881.657 | I79: 6869158.312 | J79: 3247848.108 | K79: 1948749.085 | L79: 2001015.245 | M79: 0 | N79: 0 | O79: 0 | P79: 0 | Q79: 0 | R79: =SUM(H79:L79) -> 20887652.41 | S79: La plupart des écoles primaires semblent équipées d’installations EAH également adaptées aux enfants âgés de 5 ans. Cet élément peut donc être omis.
C80: ê | D80: % of existing RCs needing furniture sets | G80: =I17 -> 0 | R80: =SUM(G80:L80) -> 0
A81: 1.2 Équiper en mobilier adéquat toutes les classes d’accueil préprimaire | B81: 1.2.1 Équipement des classes d’accueil préprimaire en mobilier de base | C81: ê | D81: Pourcentage de salles de classe disponibles devant être équipées en mobilier | G81: =I22 -> 0.9 | R81: =SUM(G81:L81) -> 0.9
C82: ê | G82: Nombre de kits d’ameublement qui seront fournis | H82: =H$61+H$66+IF(H$55<=$D$7,$G80*IFERROR($I$5/$D$7,0),0)+IF(H$55<=$D$8,$G$81*IFERROR($I$7/$D$8,0),0) -> 395.2528994 | I82: 397.9349358 | J82: 180.436006 | K82: 108.2638381 | L82: 111.1675136 | M82: 0 | N82: 0 | O82: 0 | P82: 0 | Q82: 0
C83: Nombre de classes d’accueil préprimaire qui seront équipées en mobilier | D83: 1243 | E83: 3500 | F83: =E83*0.065371 -> 228.7985 | H83: =H82*$E83 -> 1383385.148 | I83: 1392772.275 | J83: 631526.021 | K83: 378923.4333 | L83: 389086.2977 | M83: 0 | N83: 0 | O83: 0 | P83: 0 | Q83: 0 | R83: =SUM(H83:L83) -> 4175693.175 | S83: Le Ministère de l’éducation et de la formation procède actuellement à l’estimation de ces coûts sur la base du mobilier équipant les écoles primaires.
A84: 1.3 Fournir des supports d’enseignement et d’apprentissage de qualité | B84: 1.3.1 Fourniture d’un ensemble complet de matériel d’enseignement, d’apprentissage et de jeu | C84: ê | D84: Pourcentage de classes d’accueil préprimaire existantes devant être dotées de matériel pédagogique | G84: =I18 -> 0 | R84: =SUM(G84:L84) -> 0
C85: ê | G85: Nombre de nouveaux kits de matériel pédagogique qui seront fournis | H85: =H$61+H$66+IF(H$55<=$D$7,$G84*IFERROR($I$5/$D$7,0),0)+IF(H$55<=$D$8,IFERROR($I$7/$D$8,0),0) -> 419.7254438 | I85: 422.4074802 | J85: 180.436006 | K85: 108.2638381 | L85: 111.1675136 | M85: 0 | N85: 0 | O85: 0 | P85: 0 | Q85: 0
C86: ê | D86: Taux annuel de remplacement | G86: 0.05 | R86: =SUM(G86:L86) -> 0.05
C87: ê | G87: Nombre de kits de matériel pédagogique qui seront remplacés | H87: =$G86*SUM(G85:$G85) -> 0 | I87: =$G86*SUM($G85:H85) -> 20.98627219 | J87: =$G86*SUM($G85:I85) -> 42.1066462 | K87: =$G86*SUM($G85:J85) -> 51.1284465 | L87: =$G86*SUM($G85:K85) -> 56.5416384 | M87: =$G86*SUM($G85:L85) -> 62.10001408 | N87: =$G86*SUM($G85:M85) -> 62.10001408 | O87: =$G86*SUM($G85:N85) -> 62.10001408 | P87: =$G86*SUM($G85:O85) -> 62.10001408 | Q87: =$G86*SUM($G85:P85) -> 62.10001408
C88: Nombre de classes d’accueil préprimaire qui seront dotées en matériel pédagogique | D88: 1243 | E88: 4500 | F88: =E88*0.065371 -> 294.1695 | G88: Ici, nous supposons qu’un certain niveau de remplacement est nécessaire chaque année. | H88: =(H85+H87)*$E88 -> 1888764.497 | I88: 1995271.886 | J88: 1001441.935 | K88: 717265.2806 | L88: 754691.1842 | M88: 279450.0634 | N88: 279450.0634 | O88: 279450.0634 | P88: 279450.0634 | Q88: 279450.0634 | R88: =SUM(H88:L88) -> 6357434.782 | S88: Le Ministère de l’éducation et de la formation doit fournir des précisions sur le kit complet de matériel d’enseignement et d’apprentissage destiné aux classes d’accueil préprimaire (y compris son coût).
B89: 1.3.2 Fourniture de jeux de plein air | C89: ê | D89: Pourcentage de classes d’accueil préprimaire existantes devant être équipées en jeux de plein air | G89: =I19 -> 0 | R89: =SUM(G89:L89) -> 0
C90: ê | G90: Nombre de jeux de plein air qui seront fournis | H90: =H$61+H$66+IF(H$55<=$D$7,$G89*IFERROR($I$5/$D$7,0),0)+IF(H$55<=$D$8,IFERROR($I$7/$D$8,0),0) -> 419.7254438 | I90: 422.4074802 | J90: 180.436006 | K90: 108.2638381 | L90: 111.1675136 | M90: 0 | N90: 0 | O90: 0 | P90: 0 | Q90: 0
C91: Nombre de jeux de plein air fournis | D91: 1243 | E91: 1500 | F91: =E91*0.065371 -> 98.0565 | H91: =H90*$E91 -> 629588.1657 | I91: 633611.2203 | J91: 270654.009 | K91: 162395.7571 | L91: 166751.2704 | M91: 0 | N91: 0 | O91: 0 | P91: 0 | Q91: 0 | R91: =SUM(H91:L91) -> 1863000.423 | S91: Le Ministère de l’éducation et de la formation doit fournir des précisions sur le kit complet de matériel d’enseignement et d’apprentissage destiné aux classes d’accueil préprimaire (y compris son coût).
A92: 1.4 Renforcer les capacités du personnel de l’EPE | B92: 1.4.2 Salaire annuel d’un enseignant (assistant) spécialiste des soins et du développement de la petite enfance par classe d’accueil préprimaire (sur la base du salaire actuel des enseignants du DPE) | C92: ê | G92: Nombre de nouvelles classes d’accueil préprimaire opérationnelles | H92: =H$61+H$66+IF(H$55<=$D$8,IFERROR($I$7/$D$8,0),0) -> 419.7254438 | I92: 422.4074802 | J92: 180.436006 | K92: 108.2638381 | L92: 111.1675136 | M92: 0 | N92: 0 | O92: 0 | P92: 0 | Q92: 0
C93: ê | G93: Nombre total de classes d’accueil préprimaire opérationnelles | H93: =H92+$I$5 -> 659.7254438 | I93: =I92+H93 -> 1082.132924 | J93: =J92+I93 -> 1262.56893 | K93: =K92+J93 -> 1370.832768 | L93: =L92+K93 -> 1482.000282 | M93: 1482.000282 | N93: 1482.000282 | O93: 1482.000282 | P93: 1482.000282 | Q93: 1482.000282
C94: ê | D94: Taux d’attrition parmi les enseignants du DPE | G94: =I24 -> 0.02
C95: ê | G95: Nombre de nouveaux enseignants requis | H95: =H92+$G$94*H96 -> 424.5254438 | I95: =I92+$G$94*H103 -> 435.6019891 | J95: 199.2761158 | K95: 127.9271457 | L95: 132.6375551 | M95: 22.64064064 | N95: 24.38782783 | O95: 26.10007127 | P95: 27.77806985 | Q95: 29.04000563
C96: ê | G96: Enseignants du DPE actuellement en poste | H96: =$I$5 -> 240 | I96: 240 | J96: 240 | K96: 240 | L96: 240 | M96: 240 | N96: 240 | O96: 240 | P96: 240 | Q96: 240
C97: ê | D97: Recrutements | E97: Réserve | F97: =I25 -> 300 | G97: Enseignants du DPE disponibles | H97: =MAX(0,MIN(H95-H98,MAX(0,$F97-SUM($G97:G97)))) -> 300 | I97: =MAX(0,MIN(I95-I98,MAX(0,$F97-SUM($G97:H97)))) -> 0 | J97: =MAX(0,MIN(J95-J98,MAX(0,$F97-SUM($G97:I97)))) -> 0 | K97: =MAX(0,MIN(K95-K98,MAX(0,$F97-SUM($G97:J97)))) -> 0 | L97: =MAX(0,MIN(L95-L98,MAX(0,$F97-SUM($G97:K97)))) -> 0 | M97: =MAX(0,MIN(M95-M98,MAX(0,$F97-SUM($G97:L97)))) -> 0 | N97: =MAX(0,MIN(N95-N98,MAX(0,$F97-SUM($G97:M97)))) -> 0 | O97: =MAX(0,MIN(O95-O98,MAX(0,$F97-SUM($G97:N97)))) -> 0 | P97: =MAX(0,MIN(P95-P98,MAX(0,$F97-SUM($G97:O97)))) -> 0 | Q97: =MAX(0,MIN(Q95-Q98,MAX(0,$F97-SUM($G97:P97)))) -> 0
C98: ê | E98: Effectif de la cohorte | F98: =I27 -> 60 | G98: Enseignants nouvellement certifiés | H98: =MIN($F$98,H95) -> 60 | I98: =MIN($F$98,I95+H104) -> 60 | J98: 60 | K98: 60 | L98: 60 | M98: 60 | N98: 60 | O98: 60 | P98: 60 | Q98: 29.04000563
C99: ê | E99: Réserve | F99: =I26 -> 300 | G99: Enseignants disponibles dans le primaire | H99: =MAX(0,MIN(H95-H98-H97,MAX(0,$F99-SUM($G99:G99)))) -> 64.52544379 | I99: =MAX(0,MIN(I95-I98-I97,MAX(0,$F99-SUM($G99:H99)))) -> 235.4745562 | J99: =MAX(0,MIN(J95-J98-J97,MAX(0,$F99-SUM($G99:I99)))) -> 0 | K99: =MAX(0,MIN(K95-K98-K97,MAX(0,$F99-SUM($G99:J99)))) -> 0 | L99: =MAX(0,MIN(L95-L98-L97,MAX(0,$F99-SUM($G99:K99)))) -> 0 | M99: =MAX(0,MIN(M95-M98-M97,MAX(0,$F99-SUM($G99:L99)))) -> 0 | N99: =MAX(0,MIN(N95-N98-N97,MAX(0,$F99-SUM($G99:M99)))) -> 0 | O99: =MAX(0,MIN(O95-O98-O97,MAX(0,$F99-SUM($G99:N99)))) -> 0 | P99: =MAX(0,MIN(P95-P98-P97,MAX(0,$F99-SUM($G99:O99)))) -> 0 | Q99: =MAX(0,MIN(Q95-Q98-Q97,MAX(0,$F99-SUM($G99:P99)))) -> 0
C100: ê | E100: Année d’obtention du diplôme d’enseignant | G100: =I29 -> 2023
C101: ê | E101: Effectif de la cohorte | F101: =I28 -> 50 | G101: Enseignants nouvellement diplômés | H101: =IF(H$56>=$G$100,MIN($F101,MAX(H95+G104-H98,0)),0) -> 0 | I101: 0 | J101: 0 | K101: 50 | L101: 50 | M101: 50 | N101: 50 | O101: 50 | P101: 30.8748591 | Q101: 0
C102: ê | G102: Nombre total d’enseignants recrutés | H102: =SUM(H97:H101) -> 424.5254438 | I102: =SUM(I97:I101) -> 295.4745562 | J102: 60 | K102: 110 | L102: 110 | M102: 110 | N102: 110 | O102: 110 | P102: 90.8748591 | Q102: 29.04000563
C103: ê | G103: Nombre total d’enseignants | H103: =H102+H96*(1-$G$94)-H110 -> 659.7254438 | I103: =H103*(1-$G$94)+I102-I110+H110 -> 942.0054911 | J103: 983.1653813 | K103: 1073.502074 | L103: 1132.032032 | M103: 1219.391392 | N103: 1305.003564 | O103: 1388.903492 | P103: 1452.000282 | Q103: 1452.000282
C104: ê | G104: Déficit en enseignants | H104: =H95-H102 -> 0 | I104: =MAX(I95-I102+H104,0) -> 140.1274329 | J104: =MAX(J95-J102+I104,0) -> 279.4035487 | K104: 297.3306944 | L104: 319.9682495 | M104: 232.6088901 | N104: 146.996718 | O104: 63.09678925 | P104: 0 | Q104: 0
C105: ê | G105: Nombre total d’enseignants rémunérés selon les niveaux du DPE | H105: =H96*(1-$G$94)+H97+H98 -> 595.2 | I105: =I97+I98+H105*(1-$G$94)-I110 -> 643.296 | J105: 690.43008 | K105: 736.6214784 | L105: 751.8890488 | M105: 766.8512679 | N105: 781.5142425 | O105: 795.8839576 | P105: 809.9662785 | Q105: 792.8069586
C106: ê | G106: Nombre total d’enseignants rémunérés selon les niveaux du primaire | H106: =H101+H99 -> 64.52544379 | I106: =I101+I99+H106*(1-$G$94)+H110 -> 298.7094911 | J106: 292.7353013 | K106: 336.8805953 | L106: 380.1429834 | M106: 452.5401237 | N106: 523.4893212 | O106: 593.0195348 | P106: 642.0340032 | Q106: 659.1933231
C107: ê | D107: Année donnant aux enseignants du DPE la possibilité de passer en catégorie supérieure | G107: =D24 -> 2024
C108: ê | D108: Proportion d’enseignants qui demanderont à passer en catégorie supérieure | G108: 0.75
C109: ê | D109: Nombre maximal d’enseignants pouvant passer dans la catégorie des enseignants diplômés chaque année | G109: 30
C110: ê | G110: Nombre d’enseignants suivant la formation diplômante en vue de passer en catégorie supérieure | H110: =IF(H56<$G$107,0,MIN($G$109,MAX(0,$G$108*($H$96+$F$97)-SUM(G110:$G$110)))) -> 0 | I110: =IF(I56<$G$107,0,MIN($G$109,MAX(0,$G$108*($H$96+$F$97)-SUM($G110:H$110)))) -> 0 | J110: =IF(J56<$G$107,0,MIN($G$109,MAX(0,$G$108*($H$96+$F$97)-SUM($G110:I$110)))) -> 0 | K110: =IF(K56<$G$107,0,MIN($G$109,MAX(0,$G$108*($H$96+$F$97)-SUM($G110:J$110)))) -> 0 | L110: =IF(L56<$G$107,0,MIN($G$109,MAX(0,$G$108*($H$96+$F$97)-SUM($G110:K$110)))) -> 30 | M110: =IF(M56<$G$107,0,MIN($G$109,MAX(0,$G$108*($H$96+$F$97)-SUM($G110:L$110)))) -> 30 | N110: =IF(N56<$G$107,0,MIN($G$109,MAX(0,$G$108*($H$96+$F$97)-SUM($G110:M$110)))) -> 30 | O110: =IF(O56<$G$107,0,MIN($G$109,MAX(0,$G$108*($H$96+$F$97)-SUM($G110:N$110)))) -> 30 | P110: =IF(P56<$G$107,0,MIN($G$109,MAX(0,$G$108*($H$96+$F$97)-SUM($G110:O$110)))) -> 30 | Q110: =IF(Q56<$G$107,0,MIN($G$109,MAX(0,$G$108*($H$96+$F$97)-SUM($G110:P$110)))) -> 30
C111: ê | D111: Augmentation annuelle du salaire des enseignants | G111: =I32 -> 0.02
C112: ê | E112: Début | F112: =E114 -> 23000 | G112: Salaire des enseignants du DPE disponibles | H112: =E114 -> 23000 | I112: =H112*(1+$G$111) -> 23460 | J112: 23929.2 | K112: 24407.784 | L112: 24895.93968 | M112: 25393.85847 | N112: 25901.73564 | O112: 26419.77036 | P112: 26948.16576 | Q112: 27487.12908
C113: ê | E113: Début | F113: =E115 -> 98072 | G113: Salaire des enseignants disponibles dans le primaire | H113: =E115 -> 98072 | I113: 100033.44 | J113: 102034.1088 | K113: 104074.791 | L113: 106156.2868 | M113: 108279.4125 | N113: 110445.0008 | O113: 112653.9008 | P113: 114906.9788 | Q113: 117205.1184
C114: Nombre d’enseignants spécialistes des soins et du développement de la petite enfance qui percevront un salaire annuel | D114: 622 (nous disposons actuellement d’au moins 240 enseignants spécialistes des soins et du développement de la petite enfance dans les classes d’accueil préprimaire) | E114: 23000 | F114: =E114*0.065371 -> 1503.533 | G114: Veuillez consulter les notes pour en savoir plus sur ces options. Le calcul des coûts se fera selon les options de construction présentées ci-dessus par rapport au nombre réel d’enseignants dans le système éducatif. | H114: =H112*H105 -> 13689600 | I114: =I112*I105 -> 15091724.16 | J114: 16521439.47 | K114: 17979297.93 | L114: 18718984.41 | M114: 19473312.57 | N114: 20242575.31 | O114: 21027071.39 | P114: 21827105.54 | Q114: 21791987.2 | R114: =SUM(H114:L114) -> 82001045.97 | S114: Il s’agit du salaire ACTUEL perçu par les enseignants spécialistes des soins et du développement de la petite enfance. Après examen, la division du Ministère de l’éducation chargée des soins et du développement de la petite enfance a proposé le salaire annuel de 23 000 rands (incluant notamment un treizième mois) Il est également intéressant de prévoir différents compléments ou primes destinés aux enseignants des zones rurales difficiles. Pour l’instant, la moitié des salaires perçus par les enseignants spécialistes des soins et du développement de la petite enfance correspondent au salaire actuel.
B115: 1.4.2 Salaire annuel d’un enseignant (assistant) des soins et du développement de la petite enfance par classe d’accueil préprimaire (sur la base du salaire des enseignants du primaire) | C115: Nombre d’enseignants spécialistes des soins et du développement de la petite enfance qui percevront un salaire annuel | D115: =1243/2 -> 621.5 | E115: 98072 | F115: =E115*0.065371 -> 6411.064712 | H115: =H113*H106 -> 6328139.323 | I115: 29880937.96 | J115: 29868985.58 | K115: 35060777.54 | L115: 40354567.57 | M115: 49000778.74 | N115: 57816778.49 | O115: 66805963.84 | P115: 73774187.6 | Q115: 77260831.48 | R115: =SUM(H115:L115) -> 141493408 | S115: D’après l’analyse du secteur de l’éducation, le salaire moyen d’un enseignant du primaire était de 98 072 rands sud-africains en 2018. Pour l’instant, la moitié des salaires perçus par les enseignants spécialistes des soins et du développement de la petite enfance correspondent au salaire revalorisé.
B116: 1.4.2 Orientation des chefs d’établissement sur les classes d’accueil préprimaire | C116: Nombre de chefs d’établissement qui recevront une orientation de 5 jours (lors de la mise en place/l’ouverture des classes d’accueil préprimaire) | D116: 1243 | E116: 2500 | F116: =E116*0.065371 -> 163.4275 | G116: Veuillez suivre les scénarios d’élargissement pour déterminer le nombre de chefs d’établissement formés chaque année. | H116: =$E116*(H92+H97) -> 1799313.609 | I116: =$E116*I92 -> 1056018.7 | J116: 451090.015 | K116: 270659.5952 | L116: 277918.7841 | M116: 0 | N116: 0 | O116: 0 | P116: 0 | Q116: 0 | R116: =SUM(H116:L116) -> 3855000.704 | S116: Le format (et le coût unitaire) de l’orientation fournie aux chefs d’établissement doivent être vérifiés auprès du Ministère de l’éducation. 5 jours ? 3 jours ? Dans les districts ou au niveau national ? Coût estimé ?
B117: 1.4.3 Recrutement d’un nouvel inspecteur spécialiste des soins et du développement de la petite enfance par district | C117: ê | D117: Année de recrutement de nouveaux inspecteurs | G117: =D30 -> 2021
C118: ê | G118: Nombre de nouveaux inspecteurs | H118: =IF(H$56>=$G117,$D$121,0) -> 0 | I118: 10 | J118: 10 | K118: 10 | L118: 10 | M118: 10 | N118: 10 | O118: 10 | P118: 10 | Q118: 10
C119: ê | D119: Augmentation annuelle du salaire des inspecteurs | G119: 0.02
C120: ê | G120: Salaire annuel des inspecteurs | H120: =E121 -> 100000 | I120: =H120*(1+$G$119) -> 102000 | J120: 104040 | K120: 106120.8 | L120: 108243.216 | M120: 110408.0803 | N120: 112616.2419 | O120: 114868.5668 | P120: 117165.9381 | Q120: 119509.2569
C121: Nombre d’inspecteurs qui seront recrutés au salaire annuel | D121: 10 | E121: 100000 | F121: =E121*0.065371 -> 6537.1 | G121: Dépenses courantes sur 5 ans (les recrutements se font de préférence la première année) | H121: =(H118+10)*H120 -> 1000000 | I121: =(I118+10)*I120 -> 2040000 | J121: 2080800 | K121: 2122416 | L121: 2164864.32 | M121: 2208161.606 | N121: 2252324.839 | O121: 2297371.335 | P121: 2343318.762 | Q121: 2390185.137 | R121: =SUM(G121:L121) -> 9408080.32 | S121: Le recrutement de deux nouveaux inspecteurs par district est-il suffisant pour superviser les classes d’accueil préprimaire ? Salaire annuel ? À vérifier.
B122: 1.4.3 Formation des inspecteurs spécialistes des soins et du développement de la petite enfance (en poste ou recrutés) | C122: Nombre d’inspecteurs qui devront être formés | D122: 20 | E122: 2500 | F122: =E122*0.065371 -> 163.4275 | G122: Coût ponctuel ? | H122: =(IF(H55=1,10,0)+(H118-SUM(G118)))*$E$122 -> 25000 | I122: 25000 | J122: 0 | K122: 0 | L122: 0 | M122: 0 | N122: 0 | O122: 0 | P122: 0 | Q122: 0 | R122: =SUM(G122:L122) -> 50000
B123: 1.4.4 Formation continue de tous les nouveaux enseignants des classes d’accueil préprimaire | C123: ê | D123: Nombre de jours de formation continue de longue durée | G123: =D34 -> 20
C124: ê | G124: Nombre d’enseignants suivant une formation continue de longue durée | H124: =H99 -> 64.52544379 | I124: =I99 -> 235.4745562 | J124: 0 | K124: 0 | L124: 0 | M124: 0 | N124: 0 | O124: 0 | P124: 0 | Q124: 0
C125: Nombre d’enseignants qui participeront à un atelier de 20 jours sur l’EPE | D125: 622 | E125: =G123*500 -> 10000 | F125: =E125*0.065371 -> 653.71 | G125: Veuillez suivre les scénarios d’élargissement pour déterminer le nombre de chefs d’établissement formés chaque année. | H125: =H124*$E125 -> 645254.4379 | I125: 2354745.562 | J125: 0 | K125: 0 | L125: 0 | M125: 0 | N125: 0 | O125: 0 | P125: 0 | Q125: 0 | R125: =SUM(H125:L125) -> 3000000
B126: 1.4.4 Formation continue de tous les enseignants des classes d’accueil préprimaire actuellement en poste ou nouvellement recrutés | C126: ê | D126: Pourcentage d’enseignants suivant une formation continue chaque année | G126: =D32 -> 0.2
C127: ê | D127: Nombre de jours de formation continue régulière | G127: =D33 -> 5
C128: ê | G128: Nombre d’enseignants suivant une formation continue de courte durée | H128: =H97 -> 300 | I128: =H98+$G$126*H103 -> 191.9450888 | J128: =I98+$G$126*I103 -> 248.4010982 | K128: 256.6330763 | L128: 274.7004147 | M128: 286.4064064 | N128: 303.8782783 | O128: 321.0007127 | P128: 337.7806985 | Q128: 350.4000563
C129: Nombre d’enseignants qui participeront à un atelier de 5 jours sur l’EPE | D129: 621.5 | E129: =G127*500 -> 2500 | F129: =E129*0.065371 -> 163.4275 | G129: Veuillez suivre les scénarios d’élargissement pour déterminer le nombre de chefs d’établissement formés chaque année. | H129: =H128*$E129 -> 750000 | I129: 479862.7219 | J129: 621002.7456 | K129: 641582.6907 | L129: 686751.0368 | M129: 716016.0161 | N129: 759695.6958 | O129: 802501.7819 | P129: 844451.7462 | Q129: 876000.1408 | R129: =SUM(H129:L129) -> 3179199.195 | S129: Hypothèse : 50 % des enseignants doivent recevoir une nouvelle orientation et suivre une formation continue d’un mois. Hypothèse : 50 % des enseignants doivent suivre une remise à niveau d’une semaine.
B130: 1.4.4 Formation continue de tous les nouveaux enseignants des classes d’accueil préprimaire | C130: ê | D130: Nombre de jours de formation continue de courte durée | G130: 2
C131: ê | D131: Année de mise en place du nouveau programme scolaire | G131: 2021
C132: ê | G132: Nombre d’enseignants suivant une formation continue de courte durée | H132: =IF(H56<$G$131,0,IF(H56=$G$131,H103,H102)) -> 0 | I132: 942.0054911 | J132: 60 | K132: 110 | L132: 110 | M132: 110 | N132: 110 | O132: 110 | P132: 90.8748591 | Q132: 29.04000563
C133: Nombre d’enseignants qui participeront à un atelier de 20 jours sur l’EPE | D133: 622 | E133: =G130*500 -> 1000 | F133: =E133*0.065371 -> 65.371 | G133: Veuillez suivre les scénarios d’élargissement pour déterminer le nombre de chefs d’établissement formés chaque année. | H133: =H132*$E133 -> 0 | I133: 942005.4911 | J133: 60000 | K133: 110000 | L133: 110000 | M133: 110000 | N133: 110000 | O133: 110000 | P133: 90874.8591 | Q133: 29040.00563 | R133: =SUM(H133:L133) -> 1222005.491
B134: 1.4.5 Orientation du responsable de la planification et des normes au niveau du district sur les classes d’accueil préprimaire/l’EPE | C134: ê | D134: Année de formation du personnel de district | G134: 2020
C135: Nombre de membres du personnel d’éducation des districts qui recevront une orientation sur l’EPE (2 jours ?) | D135: 20 | E135: 1000 | F135: =E135*0.065371 -> 65.371 | G135: Coût ponctuel (année 1 ou 2) | H135: =IF(H56=$G$134,$E$135*20,0) -> 20000 | I135: 0 | J135: 0 | K135: 0 | L135: 0 | M135: 0 | N135: 0 | O135: 0 | P135: 0 | Q135: 0 | R135: =SUM(H135:L135) -> 20000 | S135: Le format (et le coût unitaire) de l’orientation fournie au personnel d’éducation des districts doivent être vérifiés auprès du Ministère de l’éducation. 5 jours ? 3 jours ? Dans les districts ou au niveau national ? Coût estimé ?
B136: 1.4.6 Recrutement du personnel de direction de l’enseignement préprimaire (salaire annuel) | C136: Nombre de responsables de l’EPE | D136: 1 | E136: 150000 | F136: =E136*0.065371 -> 9805.65 | G136: Dépenses courantes (salaire du responsable de l’EPE) | H136: =$E$136 -> 150000 | I136: 150000 | J136: 150000 | K136: 150000 | L136: 150000 | M136: 150000 | N136: 150000 | O136: 150000 | P136: 150000 | Q136: 150000 | R136: =SUM(H136:L136) -> 750000
A137: 1.5 Élargir le programme d’alimentation scolaire | B137: 1.5.1. Élargissement du programme d’alimentation scolaire aux classes d’accueil préprimaire | C137: ê | D137: Nombre d’enfants par classe d’accueil préprimaire | G137: =D13 -> 23
C138: ê | G138: Nombre d’enfants scolarisés en classe d’accueil préprimaire | H138: =H103*$G$137 -> 15173.68521 | I138: =I103*$G$137 -> 21666.1263 | J138: 22612.80377 | K138: 24690.54769 | L138: 26036.73674 | M138: 28046.00201 | N138: 30015.08197 | O138: 31944.78033 | P138: 33396.00648 | Q138: 33396.00648
C139: Nombre d’enfants bénéficiant du programme d’alimentation scolaire chaque année (23 par classe d’accueil préprimaire) | D139: =1243*23.09 -> 28700.87 | E139: 900 | F139: =E139*0.065371 -> 58.8339 | G139: Dépenses courantes sur 5 ans | H139: =H138*$E$139 -> 13656316.69 | I139: 19499513.67 | J139: 20351523.39 | K139: 22221492.93 | L139: 23433063.07 | M139: 25241401.81 | N139: 27013573.77 | O139: 28750302.29 | P139: 30056405.83 | Q139: 30056405.83 | R139: =SUM(H139:L139) -> 99161909.74 | S139: 5 rands sud-africains par enfant et par jour (coût actuel de l’alimentation scolaire) et 180 jours d’école par an : 5 x 180 = 900 rands sud-africains par enfant pour une année. L’idéal serait de porter ce coût à 7 rands sud-africains par enfant et par jour. | V139: 40 | W139: =T139*U139*V139 -> 0
A140: COÛT TOTAL = | H140: =SUMIF($C61:$C139,"<>ê",H61:H139) -> 111786243.5 | I140: 146483436.5 | J140: 117930736.2 | K140: 125569095.5 | L140: 133889886.6 | M140: 97179120.8 | N140: 108624398.2 | O140: 120222660.7 | P140: 129365794.4 | Q140: 132833899.9 | R140: 635659398.3
F141: En dollars É-U | H141: =H140*0.065371 -> 7307578.525 | I141: =I140*0.065371 -> 9575768.729 | J141: =J140*0.065371 -> 7709250.155 | K141: =K140*0.065371 -> 8208577.34 | L141: =L140*0.065371 -> 8752515.774 | R141: =SUM(H141:L141) -> 41553690.52
H142: Année 1 2020-2021 | I142: Année 2 2021-2022 | J142: Année 3 2022-2023 | K142: Année 4 2023-2024 | L142: Année 5 2024-2025 | R142: Coût total (en rands sud-africains)
F144: Dépenses d’investissement | G144: Infrastructures | H144: =H62+H68+H74+H79 -> 69820881.66 | I144: 70941972.88 | J144: 45922273.01 | K144: 45754284.32 | L144: 46683208.63 | M144: 0 | N144: 0 | O144: 0 | P144: 0 | Q144: 0 | R144: 279122620.5
G145: Équipement | H145: =H83+H88+H91 -> 3901737.811 | I145: 4021655.381 | J145: 1903621.965 | K145: 1258584.471 | L145: 1310528.752 | M145: 279450.0634 | N145: 279450.0634 | O145: 279450.0634 | P145: 279450.0634 | Q145: 279450.0634 | R145: 12396128.38
G146: Total des dépenses d’investissement | H146: =SUM(H144:H145) -> 73722619.47 | I146: =SUM(I144:I145) -> 74963628.26 | J146: 47825894.98 | K146: 47012868.79 | L146: 47993737.38 | M146: 279450.0634 | N146: 279450.0634 | O146: 279450.0634 | P146: 279450.0634 | Q146: 279450.0634 | R146: 291518748.9
F147: Dépenses courantes | G147: Salaires | H147: =H114+H115+H136+H121 -> 21167739.32 | I147: 47162662.12 | J147: 48621225.05 | K147: 55312491.47 | L147: 61388416.29 | M147: 70832252.91 | N147: 80461678.64 | O147: 90280406.57 | P147: 98094611.9 | Q147: 101593003.8 | R147: 233652534.3
G148: Formation | H148: =H135+H133+H129+H122+H116 -> 2594313.609 | I148: 2502886.914 | J148: 1132092.761 | K148: 1022242.286 | L148: 1074669.821 | M148: 826016.0161 | N148: 869695.6958 | O148: 912501.7819 | P148: 935326.6053 | Q148: 905040.1465 | R148: 8326205.39
G149: Programme d’alimentation scolaire | H149: =H139 -> 13656316.69 | I149: =I139 -> 19499513.67 | J149: 20351523.39 | K149: 22221492.93 | L149: 23433063.07 | M149: 25241401.81 | N149: 27013573.77 | O149: 28750302.29 | P149: 30056405.83 | Q149: 30056405.83 | R149: 99161909.74
G150: Total des dépenses courantes | H150: =SUM(H147:H149) -> 37418369.62 | I150: 69165062.7 | J150: 70104841.21 | K150: 78556226.68 | L150: 85896149.18 | M150: 96899670.74 | N150: 108344948.1 | O150: 119943210.6 | P150: 129086344.3 | Q150: 132554449.8 | R150: 341140649.4
G151: Total | H151: =H150+H146 -> 111140989.1 | I151: =I150+I146 -> 144128691 | J151: 117930736.2 | K151: 125569095.5 | L151: 133889886.6 | M151: 97179120.8 | N151: 108624398.2 | O151: 120222660.7 | P151: 129365794.4 | Q151: 132833899.9 | R151: 632659398.3
G153: Total en pourcentage du budget d’éducation 2018-2019 | H153: =H151/1000000/3128 -> 0.03553100674 | I153: 0.04607694724 | J153: 0.037701642 | K153: 0.04014357272 | L153: 0.04280367217 | M153: 0.03106749386 | N153: 0.03472647 | O153: 0.03843435445 | P153: 0.04135735115 | Q153: 0.04246608052 | R153: 0.2022568409
G154: Budget courant consacré au DPE en pourcentage du budget | H154: =240*$E$114/3128/1000000 -> 0.001764705882 | I154: 0.001764705882 | J154: 0.001764705882 | K154: 0.001764705882 | L154: 0.001764705882 | M154: 0.001764705882 | N154: 0.001764705882 | O154: 0.001764705882 | P154: 0.001764705882 | Q154: 0.001764705882 | R154: 0.001764705882
G156: 9080
G157: 20192020 | H157: 20202021 | I157: 20212022 | J157: 20222023 | K157: 20232024 | L157: 20242025 | M157: 20252026 | N157: 20262027 | O157: 20272028 | P157: 20282029 | Q157: 20292030
G158: 2019 | H158: 2020 | I158: 2021 | J158: 2022 | K158: 2023 | L158: 2024 | M158: 2025 | N158: 2026 | O158: 2027 | P158: 2028 | Q158: 2029
F159: Population en milliers d’habitants (Source : projection de variation moyenne de la population établie par l’ONU et actualisée en 2017) | G159: 56.647 | H159: 57.107 | I159: 57.567 | J159: 57.726 | K159: 57.681 | L159: 57.584 | M159: 57.623 | N159: 57.609 | O159: 57.528 | P159: 57.393 | Q159: 57.213
G160: 20192020 | H160: 20202021 | I160: 20212022 | J160: 20222023 | K160: 20232024 | L160: 20242025 | M160: 20252026 | N160: 20262027 | O160: 20272028 | P160: 20282029 | Q160: 20292030
F161: Effectifs scolarisés en classe d’accueil préprimaire | G161: =23*240 -> 5520 | H161: =H138 -> 15173.68521 | I161: =I138 -> 21666.1263 | J161: 22612.80377 | K161: 24690.54769 | L161: 26036.73674 | M161: 28046.00201 | N161: 30015.08197 | O161: 31944.78033 | P161: 33396.00648 | Q161: 33396.00648
C162: Croissance annuelle des effectifs dans l’enseignement privé | D162: 0.05 | F162: Effectifs scolarisés dans l’enseignement privé | G162: =G156 -> 9080 | H162: =G162*(1+$D$162) -> 9534 | I162: =H162*(1+$D$162) -> 10010.7 | J162: 10511.235 | K162: 11036.79675 | L162: 11588.63659 | M162: 12168.06842 | N162: 12776.47184 | O162: 13415.29543 | P162: 14086.0602 | Q162: 14790.36321
F163: Total des effectifs scolarisés | G163: =23*240+G156 -> 14600 | H163: =H138+H162 -> 24707.68521 | I163: =I138+I162 -> 31676.8263 | J163: 33124.03877 | K163: 35727.34444 | L163: 37625.37333 | M163: 40214.07042 | N163: 42791.5538 | O163: 45360.07576 | P163: 47482.06668 | Q163: 48186.36969
F164: Scolarisation en classe d’accueil préprimaire en pourcentage de la population d’enfants de 5 ans | G164: =G161/G$159/1000 -> 0.09744558406 | H164: =H161/H$159/1000 -> 0.2657062218 | I164: 0.376363651 | J164: 0.3917264971 | K164: 0.4280533918 | L164: 0.4521522774 | M164: 0.4867154089 | N164: 0.5210137646 | O164: 0.5552909944 | P164: 0.5818829209 | Q164: 0.5837136049
F165: Taux brut de scolarisation | G165: =G163/G$159/1000 -> 0.2577365086 | H165: =H163/H$159/1000 -> 0.4326559828 | I165: 0.5502601542 | J165: 0.5738148974 | K165: 0.6193953719 | L165: 0.6533997869 | M165: 0.6978822766 | N165: 0.7427928588 | O165: 0.7884869239 | P165: 0.8273145973 | Q165: 0.8422276352
G167: 20192020 | H167: 20202021 | I167: 20212022 | J167: 20222023 | K167: 20232024 | L167: 20242025 | M167: 20252026 | N167: 20262027 | O167: 20272028 | P167: 20282029 | Q167: 20292030
D168: Pourcentage d’enfants de 5 ans scolarisés : | F168: En classe d’accueil préprimaire | G168: =G164 -> 0.09744558406 | H168: 0.2657062218 | I168: 0.376363651 | J168: 0.3917264971 | K168: 0.4280533918 | L168: 0.4521522774 | M168: 0.4867154089 | N168: 0.5210137646 | O168: 0.5552909944 | P168: 0.5818829209 | Q168: 0.5837136049
F169: Effectifs scolarisés dans l’enseignement privé | G169: =G162/G159/1000 -> 0.1602909245 | H169: =H162/H159/1000 -> 0.166949761 | I169: 0.1738965032 | J169: 0.1820884004 | K169: 0.19134198 | L169: 0.2012475095 | M169: 0.2111668677 | N169: 0.2217790942 | O169: 0.2331959295 | P169: 0.2454316764 | Q169: 0.2585140302
F170: Non scolarisés | G170: =1-G168-G169 -> 0.7422634914 | H170: 0.5673440172 | I170: 0.4497398458 | J170: 0.4261851026 | K170: 0.3806046281 | L170: 0.3466002131 | M170: 0.3021177234 | N170: 0.2572071412 | O170: 0.2115130761 | P170: 0.1726854027 | Q170: 0.1577723648
A171: Éléments non chiffrés ici mais que nous suggérons de chiffrer dans le cadre des stratégies du plan sectoriel d’éducation.
A172: Formation initiale
B173: Élaboration d’une nouvelle formation diplômante
B174: Élaboration de ressources
B175: Renforcement des capacités à l’intention des nouveaux formateurs d’enseignants
B176: Déploiement de la formation des enseignants dans tous les districts
A177: Formation continue complémentaire
B178: Formation des enseignants spécialistes des soins et du développement de la petite enfance (hors classes d’accueil préprimaire) : peut être coordonnée avec le déploiement du nouveau programme scolaire
A180: Nouveau programme d’enseignement préprimaire : en cours de planification
B181: Coût d’élaboration du programme scolaire
B182: Phase d’expérimentation
B183: Conception de l’évaluation des apprentissages
B184: Déploiement du programme scolaire et formation des enseignants de l’EPE
A186: Participation des parents et des communautés
B187: Formation des membres d’associations parents-enseignants
B188: Élaboration d’orientations sur l’EPE à l’intention des associations parents-enseignants (à définir)
B189: Conception et promotion de modules d’éducation parentale
A191: Assurance qualité et réglementation
B192: Examen des normes de qualité
B193: Examen des inscriptions et appui aux centres de prise en charge et de développement de la petite enfance
B194: Examen du système d’information sur la gestion des établissements d’enseignement (SIGE)
B195: Formation des responsables du suivi

Sheet Classes d’acc. préprim. – 7 ans
B3: Options de scénario | G3: Hypothèses
B5: Nombre d’années prévues pour déployer les classes d’accueil préprimaire | D5: 7 | F5: Nombre d’écoles dotées d’une classe d’accueil préprimaire | I5: =Overview!D35 -> 240
F6: Nombre d’écoles ne possédant pas de classe d’accueil préprimaire | I6: =Overview!D38 -> 1242
B7: Nombre d’années prévues pour mettre aux normes les salles d’accueil préprimaire existantes | D7: 3 | F7: Nombre d’écoles disposant de salles de classe pouvant être transformées en classes d’accueil préprimaire | I7: =Overview!D40 -> 489.4508876
B8: Nombre d’années prévues pour rendre opérationnelles les salles de classe disponibles | D8: 3 | F8: Nombre de salles de classes qui seront construites | I8: =I6-I7 -> 752.5491124
B10: Nombre d’années prévues pour installer les préfabriqués | D10: 1 | F10: Nombre de préfabriqués pouvant être installés chaque année | I10: 100
B11: Nombre d’années avant la construction de nouvelles salles | D11: 0 | F11: Nombre de salles de classe pouvant être construites la première année | I11: 50
F12: Nombre maximal de salles de classe pouvant être construites en une année | I12: 150
B13: Nombre d’enfants par classe d’accueil préprimaire | D13: 23 | F13: Nombre de salles de classe pouvant être rénovées chaque année | I13: 50
F14: Proportion de salles de classe disponibles qui seront rénovées | I14: 0.33
B15: Remplacement des préfabriqués par des salles de classe permanentes | D15: Non | F15: Pourcentage de classes d’accueil préprimaire existantes nécessitant : | H15: une rénovation | I15: 0.25
F16: Proportion of existing RCs needing: | H16: WASH facilities | I16: 0
F17: Proportion of existing RCs needing: | H17: furniture | I17: 0
F18: Proportion of existing RCs needing: | H18: TLM | I18: 0
F19: Proportion of existing RCs needing: | H19: outdoor play materials | I19: 0
F20: Pourcentage de salles de classe disponibles nécessitant des installations EAH | I20: 0.25
F21: Pourcentage de nouvelles salles de classe nécessitant des installations EAH | I21: 0.75
F22: Pourcentage de nouvelles salles de classe devant être équipées en mobilier | I22: 0.75
B24: Année donnant aux enseignants du DPE la possibilité de passer en catégorie supérieure | D24: 2024 | F24: Taux d’attrition parmi les enseignants du DPE | I24: 0.02
F25: Nombre de nouveaux enseignants du DPE disponibles | I25: 300
F26: Nombre d’enseignants disponibles dans le primaire pouvant être formés à l’EPE | I26: 300
F27: Effectif de la cohorte d’enseignants certifiés en DPE | I27: 60
F28: Effectif de la cohorte d’enseignants diplômés en DPE (à compter de 2023) | I28: 50
F29: Année d’obtention du diplôme d’enseignant en DPE | I29: 2023
B30: Année de recrutement de nouveaux inspecteurs | D30: 2021 | F30: Proportion d’enseignants du DPE qui demanderont à passer en catégorie supérieure | I30: 0.5
F31: Nombre maximal d’enseignants pouvant passer dans la catégorie des enseignants diplômés chaque année | I31: 30
B32: Pourcentage d’enseignants suivant une formation continue chaque année | D32: 0.2 | F32: Augmentation annuelle du salaire des enseignants | I32: 0.02
B33: Nombre de jours de formation continue de courte durée | D33: 5 | F33: Augmentation annuelle du salaire des inspecteurs | I33: 0.02
B34: Nombre de jours de formation continue de longue durée | D34: 20 | F34: Pourcentage d’enseignants en poste nécessitant une formation continue de longue durée | I34: 0.3
A36: ="Résultats - Coût toal sur "&D5&" ans : "&TEXT(SUM(H140:OFFSET(G140,0,D5))/1000000,"#,##0") & " millions de rands sud-africains" -> Résultats - Coût toal sur 7 ans : 841 millions de rands sud-africains
A37: Coûts totaux | D37: Déficit en salles de classe et en enseignants | H37: Effectifs et taux de scolarisation
D54: ="Year when there are enough teachers for all classrooms opened : "& CEILING(IF(Q104=0,IF(P104=0,IF(O104=0,IF(N104=0,IF(M104=0,IF(L104=0,IF(K104=0,IF(J104=0, IF(I104=0,IF(H104=0,H56,I56),J56),K56),L56),M56),N56),O56),P56),Q56),Q56+Q104/(Q101+Q98)),1) -> Year when there are enough teachers for all classrooms opened : 2028
H55: 1 | I55: 2 | J55: 3 | K55: 4 | L55: 5 | M55: 6 | N55: 7 | O55: 8 | P55: 9 | Q55: 10
A56: Déploiement de l’EPE à grande échelle : doter chaque école primaire d’une classe d’accueil préprimaire (sur 7 ans) | H56: 2020 | I56: =H56+1 -> 2021 | J56: =I56+1 -> 2022 | K56: =J56+1 -> 2023 | L56: 2024 | M56: 2025 | N56: 2026 | O56: 2027 | P56: 2028 | Q56: 2029
A57: Objectifs stratégiques | B57: Activités | C57: Unité des produits attendus | D57: Nombre d’unités | E57: Coût unitaire (en rand sud-africain) | F57: Coût unitaire (en dollars É.-U.) | H57: Coût annuel (en milliers de rands sud-africains) | R57: Coût total sur les 5 premières années (en rands sud-africains) | S57: Hypothèses
G58: Scénarios de déploiement | H58: ="Année "& H55 & " " & 2019+H55 & " - " & 2020+H55 -> Année 1 2020 - 2021 | I58: Année 2 2021 - 2022 | J58: Année 3 2022 - 2023 | K58: Année 4 2023 - 2024 | L58: Année 5 2024 - 2025 | M58: Année 6 2025 - 2026 | N58: Année 7 2026 - 2027 | O58: Année 8 2027 - 2028 | P58: Année 9 2028 - 2029 | Q58: Année 10 2029 - 2030
A59: 1.1 Garantir des infrastructures adaptées aux besoins des enfants et sûres pour mettre en place des classes d’accueil préprimaire | B59: 1.1.1 Construction de nouvelles classes d’accueil préprimaire | C59: ê | D59: Nombre maximal de préfabriqués installés chaque année | G59: =I10 -> 100 | R59: =SUM(G59:L59) -> 100
C60: ê | D60: Nombre d’années prévues pour installer les préfabriqués | G60: =D10 -> 1 | R60: =SUM(G60:L60) -> 1
C61: ê | G61: Nombre de préfabriqués qui seront installés | H61: =IF(H$55<=$G$60,$G$59,0) -> 100 | I61: 0 | J61: 0 | K61: 0 | L61: 0 | M61: 0 | N61: 0 | O61: 0 | P61: 0 | Q61: 0
C62: Nombre de classes d’accueil préprimaire préfabriquées qui seront mises en place (hors TVA, transport et installation) Nombre de classes d’accueil préprimaire préfabriquées qui seront mises en place (TVA, transport ou installation inclus) | D62: 758 | E62: 300000 | F62: =E62*0.065371 -> 19611.3 | G62: Une première option consiste à chiffrer le coût des préfabriqués pour les deux premières années seulement, avant de chiffrer la construction pour les années 3 à 5. Une deuxième option consiste à chiffrer le coût des préfabriqués pour 5 années, mais compte tenu des coûts que cela représente cette solution est peu pertinente. | H62: =$E62*H61 -> 30000000 | I62: =$E62*I61 -> 0 | J62: =$E62*J61/1000000 -> 0 | K62: 0 | L62: 0 | M62: 0 | N62: 0 | O62: 0 | P62: 0 | Q62: 0 | R62: =SUM(H62:L62) -> 30000000 | S62: Il s’agit du coût exact d’une salle de classe préfabriquée de 7 mètres x 7 mètres pouvant accueillir jusqu’à 50 enfants, comme en produit la société sud-africaine Kwikspace. Ce coût inclut l’estimation de la TVA, du transport et de l’installation éventuelle.
C63: ê | D63: Nombre de constructions la première année | G63: =I11 -> 50 | R63: =SUM(G63:L63) -> 50
C64: ê | D64: Nombre maximal de constructions annuelles | G64: =I12 -> 150 | R64: =SUM(G64:L64) -> 150
C65: ê | D65: Taux d’augmentation du nombre de constructions annuelles | G65: =IF(incr_rate(G63,($D$5-$D$11),I8-SUM(H61:Q61))<0,0, incr_rate(G63,($D$5-$D$11),I8-SUM(H61:Q61))) -> 0.203365485 | R65: =SUM(G65:L65) -> 0.203365485
C66: ê | G66: Nombre de nouvelles constructions | H66: =IF(H$55<=$D$11,0, IF($G$63*(1+$G$65)^(G$55-$D$11)<=$G$64, IF(H$55>$D$5,0,$G$63*(1+$G$65)^(G$55-$D$11)), MIN($G$64,MAX(0,$I$8-SUM($H$61:$Q$61)-SUM($G66:G$66))))) -> 50 | I66: =IF(I$55<=$D$11,0, IF($G$63*(1+$G$65)^(H$55-$D$11)<=$G$64, IF(I$55>$D$5,0,$G$63*(1+$G$65)^(H$55-$D$11)), MIN($G$64,MAX(0,$I$8-SUM($H$61:$Q$61)-SUM($G66:H$66))))) -> 60.16827425 | J66: =IF(J$55<=$D$11,0, IF($G$63*(1+$G$65)^(I$55-$D$11)<=$G$64, IF(J$55>$D$5,0,$G$63*(1+$G$65)^(I$55-$D$11)), MIN($G$64,MAX(0,$I$8-SUM($H$61:$Q$61)-SUM($G66:I$66))))) -> 72.40442452 | K66: =IF(K$55<=$D$11,0, IF($G$63*(1+$G$65)^(J$55-$D$11)<=$G$64, IF(K$55>$D$5,0,$G$63*(1+$G$65)^(J$55-$D$11)), MIN($G$64,MAX(0,$I$8-SUM($H$61:$Q$61)-SUM($G66:J$66))))) -> 87.12898543 | L66: =IF(L$55<=$D$11,0, IF($G$63*(1+$G$65)^(K$55-$D$11)<=$G$64, IF(L$55>$D$5,0,$G$63*(1+$G$65)^(K$55-$D$11)), MIN($G$64,MAX(0,$I$8-SUM($H$61:$Q$61)-SUM($G66:K$66))))) -> 104.8480138 | M66: =IF(M$55<=$D$11,0, IF($G$63*(1+$G$65)^(L$55-$D$11)<=$G$64, IF(M$55>$D$5,0,$G$63*(1+$G$65)^(L$55-$D$11)), MIN($G$64,MAX(0,$I$8-SUM($H$61:$Q$61)-SUM($G66:L$66))))) -> 126.170481 | N66: =IF(N$55<=$D$11,0, IF($G$63*(1+$G$65)^(M$55-$D$11)<=$G$64, IF(N$55>$D$5,0,$G$63*(1+$G$65)^(M$55-$D$11)), MIN($G$64,MAX(0,$I$8-SUM($H$61:$Q$61)-SUM($G66:M$66))))) -> 150 | O66: =IF(O$55<=$D$11,0, IF($G$63*(1+$G$65)^(N$55-$D$11)<=$G$64, IF(O$55>$D$5,0,$G$63*(1+$G$65)^(N$55-$D$11)), MIN($G$64,MAX(0,$I$8-SUM($H$61:$Q$61)-SUM($G66:N$66))))) -> 1.828933448 | P66: =IF(P$55<=$D$11,0, IF($G$63*(1+$G$65)^(O$55-$D$11)<=$G$64, IF(P$55>$D$5,0,$G$63*(1+$G$65)^(O$55-$D$11)), MIN($G$64,MAX(0,$I$8-SUM($H$61:$Q$61)-SUM($G66:O$66))))) -> 0 | Q66: =IF(Q$55<=$D$11,0, IF($G$63*(1+$G$65)^(P$55-$D$11)<=$G$64, IF(Q$55>$D$5,0,$G$63*(1+$G$65)^(P$55-$D$11)), MIN($G$64,MAX(0,$I$8-SUM($H$61:$Q$61)-SUM($G66:P$66))))) -> 0
C67: ê | G67: Nombre de constructions en remplacement des préfabriqués | H67: =IF($D$15="Yes",IF(H66=0,MIN(MAX($H$66:$Q$66),SUM($H$61:$Q$61)-SUM(G67:$G$67)),0),0) -> 0 | I67: =IF($D$15="Yes",IF(I66=0,MIN(MAX($H$66:$Q$66),SUM($H$61:$Q$61)-SUM($G67:H$67)),0),0) -> 0 | J67: =IF($D$15="Yes",IF(J66=0,MIN(MAX($H$66:$Q$66),SUM($H$61:$Q$61)-SUM($G67:I$67)),0),0) -> 0 | K67: =IF($D$15="Yes",IF(K66=0,MIN(MAX($H$66:$Q$66),SUM($H$61:$Q$61)-SUM($G67:J$67)),0),0) -> 0 | L67: =IF($D$15="Yes",IF(L66=0,MIN(MAX($H$66:$Q$66),SUM($H$61:$Q$61)-SUM($G67:K$67)),0),0) -> 0 | M67: =IF($D$15="Yes",IF(M66=0,MIN(MAX($H$66:$Q$66),SUM($H$61:$Q$61)-SUM($G67:L$67)),0),0) -> 0 | N67: =IF($D$15="Yes",IF(N66=0,MIN(MAX($H$66:$Q$66),SUM($H$61:$Q$61)-SUM($G67:M$67)),0),0) -> 0 | O67: =IF($D$15="Yes",IF(O66=0,MIN(MAX($H$66:$Q$66),SUM($H$61:$Q$61)-SUM($G67:N$67)),0),0) -> 0 | P67: =IF($D$15="Yes",IF(P66=0,MIN(MAX($H$66:$Q$66),SUM($H$61:$Q$61)-SUM($G67:O$67)),0),0) -> 0 | Q67: =IF($D$15="Yes",IF(Q66=0,MIN(MAX($H$66:$Q$66),SUM($H$61:$Q$61)-SUM($G67:P$67)),0),0) -> 0
C68: Nombre de classes d’accueil préprimaire permanentes qui seront construites (hors TVA, transport et installation) | D68: 0 | E68: 400000 | F68: =E68*0.065371 -> 26148.4 | G68: Une seule option ici (veuillez consulter les notes pour connaître les autres possibilités). | H68: =(H66+H67)*$E$68 -> 20000000 | I68: 24067309.7 | J68: 28961769.81 | K68: 34851594.17 | L68: 41939205.52 | M68: 50468192.39 | N68: 60000000 | O68: 731573.3793 | P68: 0 | Q68: 0 | R68: =SUM(H68:L68) -> 149819879.2 | S68: Estimation réalisée à partir des données financières communiquées par la division chargée des soins et du développement de la petite enfance ; le coût de construction d’un ensemble de 2 classes étant de 700 000 rands sud-africains, le coût d’une classe a été estimé à 400 000 rands sud-africains.
B69: 1.1.2 Transformation des salles de classe primaire en salles d’accueil préprimaire | C69: ê | D69: Capacité annuelle de rénovation | G69: =I13 -> 50 | R69: =SUM(G69:L69) -> 50
C70: ê | D70: Pourcentage de classes d’accueil préprimaire existantes nécessitant une rénovation | G70: =I15 -> 0.25 | R70: =SUM(G70:L70) -> 0.25
C71: ê | G71: Nombre de salles d’accueil préprimaire à rénover | H71: =MIN($G$69,MAX($I$5*$G70-SUM(G71:$G$71),0)) -> 50 | I71: =MIN($G$69,MAX($I$5*$G70-SUM($G71:H$71),0)) -> 10 | J71: =MIN($G$69,MAX($I$5*$G70-SUM($G71:I$71),0)) -> 0 | K71: =MIN($G$69,MAX($I$5*$G70-SUM($G71:J$71),0)) -> 0 | L71: =MIN($G$69,MAX($I$5*$G70-SUM($G71:K$71),0)) -> 0 | M71: =MIN($G$69,MAX($I$5*$G70-SUM($G71:L$71),0)) -> 0 | N71: =MIN($G$69,MAX($I$5*$G70-SUM($G71:M$71),0)) -> 0 | O71: =MIN($G$69,MAX($I$5*$G70-SUM($G71:N$71),0)) -> 0 | P71: =MIN($G$69,MAX($I$5*$G70-SUM($G71:O$71),0)) -> 0 | Q71: =MIN($G$69,MAX($I$5*$G70-SUM($G71:P$71),0)) -> 0
C72: ê | D72: Pourcentage de salles de classe disponibles qui seront rénovées | G72: =I14 -> 0.33 | R72: =SUM(G72:L72) -> 0.33
C73: ê | G73: Nombre de salles de classe disponibles qui seront rénovées | H73: =MIN($I$13-H71,MAX($I$7*$G72-SUM(G$73:$G73),0)) -> 0 | I73: =MIN($I$13-I71,MAX($I$7*$G72-SUM($G$73:H73),0)) -> 40 | J73: =MIN($I$13-J71,MAX($I$7*$G72-SUM($G$73:I73),0)) -> 50 | K73: =MIN($I$13-K71,MAX($I$7*$G72-SUM($G$73:J73),0)) -> 50 | L73: =MIN($I$13-L71,MAX($I$7*$G72-SUM($G$73:K73),0)) -> 21.5187929 | M73: =MIN($I$13-M71,MAX($I$7*$G72-SUM($G$73:L73),0)) -> 0 | N73: =MIN($I$13-N71,MAX($I$7*$G72-SUM($G$73:M73),0)) -> 0 | O73: =MIN($I$13-O71,MAX($I$7*$G72-SUM($G$73:N73),0)) -> 0 | P73: =MIN($I$13-P71,MAX($I$7*$G72-SUM($G$73:O73),0)) -> 0 | Q73: =MIN($I$13-Q71,MAX($I$7*$G72-SUM($G$73:P73),0)) -> 0 | R73: =MIN($I$13-R71,MAX($I$7*$G72-SUM($G$73:Q73),0)) -> 0
C74: Nombre de salles de classe primaires transformées en classes d’accueil préprimaire | D74: 485 | E74: 10000 | F74: =E74*0.065371 -> 653.71 | G74: Nous devons supposer qu’au moins un tiers des salles de classe que nous considérons comme disponibles ne sont en fait pas utilisables, c’est pourquoi nous conseillons de les intégrer au budget prévu pour les préfabriqués. | H74: =(H71+H73)*$E74 -> 500000 | I74: 500000 | J74: 500000 | K74: 500000 | L74: 215187.929 | M74: 0 | N74: 0 | O74: 0 | P74: 0 | Q74: 0 | R74: =SUM(H74:L74) -> 2215187.929 | S74: Le Ministère de l’éducation et de la formation utilise une subvention de 5 maloti par enfant pour rénover/réhabiliter les infrastructures. Pour une salle accueillant 23 enfants, cette subvention est de 115 000 rands par classe d’accueil préprimaire.
B75: 1.1.3 Mise en place d’installations EAH adaptées aux besoins des enfants | C75: ê | D75: Pourcentage de salles de classe disponibles nécessitant des installations EAH | G75: =I20 -> 0.25 | R75: =SUM(G75:L75) -> 0.25
C76: ê | D76: Pourcentage de nouvelles salles de classe nécessitant des installations EAH | G76: =I21 -> 0.75 | R76: =SUM(G76:L76) -> 0.75
C77: ê | D77: Pourcentage de classes d’accueil préprimaire existantes nécessitant des installations EAH | G77: =I16 -> 0 | R77: =SUM(G77:L77) -> 0
C78: ê | G78: Nombre d’installations EAH qui seront construites | H78: =$G$76*(H$61+H$66)+IF(H$55<=$D$7,$G77*IFERROR($I$5/$D$7,0),0)+IF(H$55<=$D$8,$G$75*IFERROR($I$7/$D$8,0),0) -> 153.287574 | I78: 85.91377965 | J78: 95.09089235 | K78: 65.34673907 | L78: 78.63601035 | M78: 94.62786073 | N78: 112.5 | O78: 1.371700086 | P78: 0 | Q78: 0
C79: Nombre de blocs sanitaires installés (toilettes + poste de lavage des mains) | D79: 0 | E79: 20000 | F79: =E79*0.065371 -> 1307.42 | G79: Pour chaque nouvelle salle de classe ou salle de classe rénovée | H79: =H78*$E79 -> 3065751.479 | I79: 1718275.593 | J79: 1901817.847 | K79: 1306934.781 | L79: 1572720.207 | M79: 1892557.215 | N79: 2250000 | O79: 27434.00172 | P79: 0 | Q79: 0 | R79: =SUM(H79:L79) -> 9565499.908 | S79: La plupart des écoles primaires semblent équipées d’installations EAH également adaptées aux enfants âgés de 5 ans. Cet élément peut donc être omis.
C80: ê | D80: Pourcentage de classes d’accueil préprimaire existantes devant être équipées en mobilier | G80: =I17 -> 0 | R80: =SUM(G80:L80) -> 0
A81: 1.2 Équiper en mobilier adéquat toutes les classes d’accueil préprimaire | B81: 1.2.1 Équipement des classes d’accueil préprimaire en mobilier de base | C81: ê | D81: Pourcentage de salles de classe disponibles devant être équipées en mobilier | G81: =I22 -> 0.75 | R81: =SUM(G81:L81) -> 0.75
C82: ê | G82: Nombre de kits d’ameublement qui seront fournis | H82: =H$61+H$66+IF(H$55<=$D$7,$G80*IFERROR($I$5/$D$7,0),0)+IF(H$55<=$D$8,$G$81*IFERROR($I$7/$D$8,0),0) -> 272.3627219 | I82: 182.5309961 | J82: 194.7671464 | K82: 87.12898543 | L82: 104.8480138 | M82: 126.170481 | N82: 150 | O82: 1.828933448 | P82: 0 | Q82: 0
C83: Nombre de classes d’accueil préprimaire qui seront équipées en mobilier | D83: 1243 | E83: 3500 | F83: =E83*0.065371 -> 228.7985 | H83: =H82*$E83 -> 953269.5266 | I83: 638858.4865 | J83: 681685.0124 | K83: 304951.449 | L83: 366968.0483 | M83: 441596.6834 | N83: 525000 | O83: 6401.267068 | P83: 0 | Q83: 0 | R83: =SUM(H83:L83) -> 2945732.523 | S83: Le Ministère de l’éducation et de la formation procède actuellement à l’estimation de ces coûts sur la base du mobilier équipant les écoles primaires.
A84: 1.3 Fournir des supports d’enseignement et d’apprentissage de qualité | B84: 1.3.1 Fourniture d’un ensemble complet de matériel d’enseignement, d’apprentissage et de jeu | C84: ê | D84: Pourcentage de classes d’accueil préprimaire existantes devant être dotées de matériel pédagogique | G84: =I18 -> 0 | R84: =SUM(G84:L84) -> 0
C85: ê | G85: Nombre de nouveaux kits de matériel pédagogique qui seront fournis | H85: =H$61+H$66+IF(H$55<=$D$7,$G84*IFERROR($I$5/$D$7,0),0)+IF(H$55<=$D$8,IFERROR($I$7/$D$8,0),0) -> 313.1502959 | I85: 223.3185701 | J85: 235.5547204 | K85: 87.12898543 | L85: 104.8480138 | M85: 126.170481 | N85: 150 | O85: 1.828933448 | P85: 0 | Q85: 0
C86: ê | D86: Taux annuel de remplacement | G86: 0.05 | R86: =SUM(G86:L86) -> 0.05
C87: ê | G87: Nombre de kits de matériel pédagogique qui seront remplacés | H87: =$G86*SUM(G85:$G85) -> 0 | I87: =$G86*SUM($G85:H85) -> 15.65751479 | J87: =$G86*SUM($G85:I85) -> 26.8234433 | K87: =$G86*SUM($G85:J85) -> 38.60117932 | L87: =$G86*SUM($G85:K85) -> 42.95762859 | M87: =$G86*SUM($G85:L85) -> 48.20002928 | N87: =$G86*SUM($G85:M85) -> 54.50855333 | O87: =$G86*SUM($G85:N85) -> 62.00855333 | P87: =$G86*SUM($G85:O85) -> 62.1 | Q87: =$G86*SUM($G85:P85) -> 62.1
C88: Nombre de classes d’accueil préprimaire qui seront dotées en matériel pédagogique | D88: 1243 | E88: 4500 | F88: =E88*0.065371 -> 294.1695 | G88: Ici, nous supposons qu’un certain niveau de remplacement est nécessaire chaque année. | H88: =(H85+H87)*$E88 -> 1409176.331 | I88: 1075392.382 | J88: 1180701.737 | K88: 565785.7413 | L88: 665125.3908 | M88: 784667.2962 | N88: 920288.49 | O88: 287268.6905 | P88: 279450 | Q88: 279450 | R88: =SUM(H88:L88) -> 4896181.582 | S88: Le Ministère de l’éducation et de la formation doit fournir des précisions sur le kit complet de matériel d’enseignement et d’apprentissage destiné aux classes d’accueil préprimaire (y compris son coût).
B89: 1.3.2 Fourniture de jeux de plein air | C89: ê | D89: Pourcentage de classes d’accueil préprimaire existantes devant être équipées en jeux de plein air | G89: =I19 -> 0 | R89: =SUM(G89:L89) -> 0
C90: ê | G90: Nombre de jeux de plein air qui seront fournis | H90: =H$61+H$66+IF(H$55<=$D$7,$G89*IFERROR($I$5/$D$7,0),0)+IF(H$55<=$D$8,IFERROR($I$7/$D$8,0),0) -> 313.1502959 | I90: 223.3185701 | J90: 235.5547204 | K90: 87.12898543 | L90: 104.8480138 | M90: 126.170481 | N90: 150 | O90: 1.828933448 | P90: 0 | Q90: 0
C91: Nombre de jeux de plein air fournis | D91: 1243 | E91: 1500 | F91: =E91*0.065371 -> 98.0565 | H91: =H90*$E91 -> 469725.4438 | I91: 334977.8552 | J91: 353332.0806 | K91: 130693.4781 | L91: 157272.0207 | M91: 189255.7215 | N91: 225000 | O91: 2743.400172 | P91: 0 | Q91: 0 | R91: =SUM(H91:L91) -> 1446000.878 | S91: Le Ministère de l’éducation et de la formation doit fournir des précisions sur le kit complet de matériel d’enseignement et d’apprentissage destiné aux classes d’accueil préprimaire (y compris son coût).
A92: 1.4 Renforcer les capacités du personnel de l’EPE | B92: 1.4.2 Salaire annuel d’un enseignant (assistant) spécialiste des soins et du développement de la petite enfance par classe d’accueil préprimaire (sur la base du salaire actuel des enseignants du DPE) | C92: ê | G92: Nombre de nouvelles classes d’accueil préprimaire opérationnelles | H92: =H$61+H$66+IF(H$55<=$D$8,IFERROR($I$7/$D$8,0),0) -> 313.1502959 | I92: 223.3185701 | J92: 235.5547204 | K92: 87.12898543 | L92: 104.8480138 | M92: 126.170481 | N92: 150 | O92: 1.828933448 | P92: 0 | Q92: 0
C93: ê | G93: Nombre total de classes d’accueil préprimaire opérationnelles | H93: =H92+$I$5 -> 553.1502959 | I93: =I92+H93 -> 776.468866 | J93: =J92+I93 -> 1012.023586 | K93: =K92+J93 -> 1099.152572 | L93: =L92+K93 -> 1204.000586 | M93: 1330.171067 | N93: 1480.171067 | O93: 1482 | P93: 1482 | Q93: 1482
C94: ê | D94: Taux d’attrition parmi les enseignants du DPE | G94: =I24 -> 0.02
C95: ê | G95: Nombre de nouveaux enseignants requis | H95: =H92+$G$94*H96 -> 317.9502959 | I95: =I92+$G$94*H103 -> 234.381576 | J95: 251.0840977 | K95: 106.9011378 | L95: 126.4247231 | M95: 148.9156561 | N95: 174.4902716 | O95: 28.02939962 | P95: 27.87645685 | Q95: 29.04
C96: ê | G96: Enseignants du DPE actuellement en poste | H96: =$I$5 -> 240 | I96: 240 | J96: 240 | K96: 240 | L96: 240 | M96: 240 | N96: 240 | O96: 240 | P96: 240 | Q96: 240
C97: ê | D97: Recrutements | E97: Réserve | F97: =I25 -> 300 | G97: Enseignants du DPE disponibles | H97: =MAX(0,MIN(H95-H98,MAX(0,$F97-SUM($G97:G97)))) -> 257.9502959 | I97: =MAX(0,MIN(I95-I98,MAX(0,$F97-SUM($G97:H97)))) -> 42.04970414 | J97: =MAX(0,MIN(J95-J98,MAX(0,$F97-SUM($G97:I97)))) -> 0 | K97: =MAX(0,MIN(K95-K98,MAX(0,$F97-SUM($G97:J97)))) -> 0 | L97: =MAX(0,MIN(L95-L98,MAX(0,$F97-SUM($G97:K97)))) -> 0 | M97: =MAX(0,MIN(M95-M98,MAX(0,$F97-SUM($G97:L97)))) -> 0 | N97: =MAX(0,MIN(N95-N98,MAX(0,$F97-SUM($G97:M97)))) -> 0 | O97: =MAX(0,MIN(O95-O98,MAX(0,$F97-SUM($G97:N97)))) -> 0 | P97: =MAX(0,MIN(P95-P98,MAX(0,$F97-SUM($G97:O97)))) -> 0 | Q97: =MAX(0,MIN(Q95-Q98,MAX(0,$F97-SUM($G97:P97)))) -> 0
C98: ê | E98: Effectif de la cohorte | F98: =I27 -> 60 | G98: Enseignants nouvellement certifiés | H98: =MIN($F$98,H95) -> 60 | I98: =MIN($F$98,I95+H104) -> 60 | J98: 60 | K98: 60 | L98: 60 | M98: 60 | N98: 60 | O98: 60 | P98: 60 | Q98: 29.04
C99: ê | E99: Réserve | F99: =I26 -> 300 | G99: Enseignants disponibles dans le primaire | H99: =MAX(0,MIN(H95-H98-H97,MAX(0,$F99-SUM($G99:G99)))) -> 0 | I99: =MAX(0,MIN(I95-I98-I97,MAX(0,$F99-SUM($G99:H99)))) -> 132.3318719 | J99: =MAX(0,MIN(J95-J98-J97,MAX(0,$F99-SUM($G99:I99)))) -> 167.6681281 | K99: =MAX(0,MIN(K95-K98-K97,MAX(0,$F99-SUM($G99:J99)))) -> 0 | L99: =MAX(0,MIN(L95-L98-L97,MAX(0,$F99-SUM($G99:K99)))) -> 0 | M99: =MAX(0,MIN(M95-M98-M97,MAX(0,$F99-SUM($G99:L99)))) -> 0 | N99: =MAX(0,MIN(N95-N98-N97,MAX(0,$F99-SUM($G99:M99)))) -> 0 | O99: =MAX(0,MIN(O95-O98-O97,MAX(0,$F99-SUM($G99:N99)))) -> 0 | P99: =MAX(0,MIN(P95-P98-P97,MAX(0,$F99-SUM($G99:O99)))) -> 0 | Q99: =MAX(0,MIN(Q95-Q98-Q97,MAX(0,$F99-SUM($G99:P99)))) -> 0
C100: ê | E100: Année d’obtention du diplôme d’enseignant | G100: =I29 -> 2023
C101: ê | E101: Effectif de la cohorte | F101: =I28 -> 50 | G101: Enseignants nouvellement diplômés | H101: =IF(H$56>=$G$100,MIN($F101,MAX(H95+G104-H98,0)),0) -> 0 | I101: 0 | J101: 0 | K101: 50 | L101: 50 | M101: 50 | N101: 50 | O101: 50 | P101: 26.05361458 | Q101: 0
C102: ê | G102: Nombre total d’enseignants recrutés | H102: =SUM(H97:H101) -> 317.9502959 | I102: =SUM(I97:I101) -> 234.381576 | J102: 227.6681281 | K102: 110 | L102: 110 | M102: 110 | N102: 110 | O102: 110 | P102: 86.05361458 | Q102: 29.04
C103: ê | G103: Nombre total d’enseignants | H103: =H102+H96*(1-$G$94)-H110 -> 553.1502959 | I103: =H103*(1-$G$94)+I102-I110+H110 -> 776.468866 | J103: 988.6076168 | K103: 1078.835464 | L103: 1137.258755 | M103: 1224.51358 | N103: 1310.023308 | O103: 1393.822842 | P103: 1452 | Q103: 1452
C104: ê | G104: Déficit en enseignants | H104: =H95-H102 -> 0 | I104: =MAX(I95-I102+H104,0) -> 0 | J104: 23.41596958 | K104: 20.31710734 | L104: 36.74183043 | M104: 75.65748651 | N104: 140.1477581 | O104: 58.17715773 | P104: 0 | Q104: 0
C105: ê | G105: Nombre total d’enseignants rémunérés selon les niveaux du DPE | H105: =H96*(1-$G$94)+H97+H98 -> 553.1502959 | I105: =I97+I98+H105*(1-$G$94)-I110 -> 644.1369941 | J105: 691.2542542 | K105: 737.4291691 | L105: 752.6805857 | M105: 767.626974 | N105: 782.2744345 | O105: 796.6289458 | P105: 810.6963669 | Q105: 793.5224396
C106: ê | G106: Nombre total d’enseignants rémunérés selon les niveaux du primaire | H106: =H101+H99 -> 0 | I106: =I101+I99+H106*(1-$G$94)+H110 -> 132.3318719 | J106: 297.3533626 | K106: 341.4062953 | L106: 384.5781694 | M106: 456.886606 | N106: 527.7488739 | O106: 597.1938964 | P106: 641.3036331 | Q106: 658.4775604
C107: ê | D107: Année donnant aux enseignants du DPE la possibilité de passer en catégorie supérieure | G107: =D24 -> 2024
C108: ê | D108: Proportion d’enseignants qui demanderont à passer en catégorie supérieure | G108: 0.75
C109: ê | D109: Nombre maximal d’enseignants pouvant passer dans la catégorie des enseignants diplômés chaque année | G109: 30
C110: ê | G110: Nombre d’enseignants suivant la formation diplômante en vue de passer en catégorie supérieure | H110: =IF(H56<$G$107,0,MIN($G$109,MAX(0,$G$108*($H$96+$F$97)-SUM(G110:$G$110)))) -> 0 | I110: =IF(I56<$G$107,0,MIN($G$109,MAX(0,$G$108*($H$96+$F$97)-SUM($G110:H$110)))) -> 0 | J110: =IF(J56<$G$107,0,MIN($G$109,MAX(0,$G$108*($H$96+$F$97)-SUM($G110:I$110)))) -> 0 | K110: =IF(K56<$G$107,0,MIN($G$109,MAX(0,$G$108*($H$96+$F$97)-SUM($G110:J$110)))) -> 0 | L110: =IF(L56<$G$107,0,MIN($G$109,MAX(0,$G$108*($H$96+$F$97)-SUM($G110:K$110)))) -> 30 | M110: =IF(M56<$G$107,0,MIN($G$109,MAX(0,$G$108*($H$96+$F$97)-SUM($G110:L$110)))) -> 30 | N110: =IF(N56<$G$107,0,MIN($G$109,MAX(0,$G$108*($H$96+$F$97)-SUM($G110:M$110)))) -> 30 | O110: =IF(O56<$G$107,0,MIN($G$109,MAX(0,$G$108*($H$96+$F$97)-SUM($G110:N$110)))) -> 30 | P110: =IF(P56<$G$107,0,MIN($G$109,MAX(0,$G$108*($H$96+$F$97)-SUM($G110:O$110)))) -> 30 | Q110: =IF(Q56<$G$107,0,MIN($G$109,MAX(0,$G$108*($H$96+$F$97)-SUM($G110:P$110)))) -> 30
C111: ê | D111: Augmentation annuelle du salaire des enseignants | G111: =I32 -> 0.02
C112: ê | E112: Début | F112: =E114 -> 23000 | G112: Salaire des enseignants du DPE disponibles | H112: =E114 -> 23000 | I112: =H112*(1+$G$111) -> 23460 | J112: 23929.2 | K112: 24407.784 | L112: 24895.93968 | M112: 25393.85847 | N112: 25901.73564 | O112: 26419.77036 | P112: 26948.16576 | Q112: 27487.12908
C113: ê | E113: Début | F113: =E115 -> 98072 | G113: Salaire des enseignants disponibles dans le primaire | H113: =E115 -> 98072 | I113: 100033.44 | J113: 102034.1088 | K113: 104074.791 | L113: 106156.2868 | M113: 108279.4125 | N113: 110445.0008 | O113: 112653.9008 | P113: 114906.9788 | Q113: 117205.1184
C114: Nombre d’enseignants spécialistes des soins et du développement de la petite enfance qui percevront un salaire annuel | D114: 622 (nous disposons actuellement d’au moins 240 enseignants spécialistes des soins et du développement de la petite enfance dans les classes d’accueil préprimaire) | E114: 23000 | F114: =E114*0.065371 -> 1503.533 | G114: Veuillez consulter les notes pour en savoir plus sur ces options. Le calcul des coûts se fera selon les options de construction présentées ci-dessus par rapport au nombre réel d’enseignants dans le système éducatif. | H114: =H112*H105 -> 12722456.8 | I114: =I112*I105 -> 15111453.88 | J114: 16541161.3 | K114: 17999011.88 | L114: 18738690.46 | M114: 19493010.74 | N114: 20262265.6 | O114: 21046753.81 | P114: 21846780.08 | Q114: 21811653.72 | R114: =SUM(H114:L114) -> 81112774.32 | S114: Il s’agit du salaire ACTUEL perçu par les enseignants spécialistes des soins et du développement de la petite enfance. Après examen, la division du Ministère de l’éducation chargée des soins et du développement de la petite enfance a proposé le salaire annuel de 23 000 rands (incluant notamment un treizième mois) Il est également intéressant de prévoir différents compléments ou primes destinés aux enseignants des zones rurales difficiles. Pour l’instant, la moitié des salaires perçus par les enseignants spécialistes des soins et du développement de la petite enfance correspondent au salaire actuel.
B115: 1.4.2 Salaire annuel d’un enseignant (assistant) des soins et du développement de la petite enfance par classe d’accueil préprimaire (sur la base du salaire des enseignants du primaire) | C115: Nombre d’enseignants spécialistes des soins et du développement de la petite enfance qui percevront un salaire annuel | D115: =1243/2 -> 621.5 | E115: 98072 | F115: =E115*0.065371 -> 6411.064712 | H115: =H113*H106 -> 0 | I115: 13237612.37 | J115: 30340185.35 | K115: 35531788.82 | L115: 40825390.45 | M115: 49471413.29 | N115: 58287224.79 | O115: 67276221.96 | P115: 73690262.98 | Q115: 77176940.42 | R115: =SUM(H115:L115) -> 119934977 | S115: D’après l’analyse du secteur de l’éducation, le salaire moyen d’un enseignant du primaire était de 98 072 rands sud-africains en 2018. Pour l’instant, la moitié des salaires perçus par les enseignants spécialistes des soins et du développement de la petite enfance correspondent au salaire revalorisé.
B116: 1.4.2 Orientation des chefs d’établissement sur les classes d’accueil préprimaire | C116: Nombre de chefs d’établissement qui recevront une orientation de 5 jours (lors de la mise en place/l’ouverture des classes d’accueil préprimaire) | D116: 1243 | E116: 2500 | F116: =E116*0.065371 -> 163.4275 | G116: Veuillez suivre les scénarios d’élargissement pour déterminer le nombre de chefs d’établissement formés chaque année. | H116: =$E116*(H92+H97) -> 1427751.479 | I116: =$E116*I92 -> 558296.4253 | J116: 588886.8009 | K116: 217822.4636 | L116: 262120.0345 | M116: 315426.2024 | N116: 375000 | O116: 4572.33362 | P116: 0 | Q116: 0 | R116: =SUM(H116:L116) -> 3054877.204 | S116: Le format (et le coût unitaire) de l’orientation fournie aux chefs d’établissement doivent être vérifiés auprès du Ministère de l’éducation. 5 jours ? 3 jours ? Dans les districts ou au niveau national ? Coût estimé ?
B117: 1.4.3 Recrutement d’un nouvel inspecteur spécialiste des soins et du développement de la petite enfance par district | C117: ê | D117: Année de recrutement de nouveaux inspecteurs | G117: =D30 -> 2021
C118: ê | G118: Nombre de nouveaux inspecteurs | H118: =IF(H$56>=$G117,$D$121,0) -> 0 | I118: 10 | J118: 10 | K118: 10 | L118: 10 | M118: 10 | N118: 10 | O118: 10 | P118: 10 | Q118: 10
C119: ê | D119: Augmentation annuelle du salaire des inspecteurs | G119: 0.02
C120: ê | G120: Salaire annuel des inspecteurs | H120: =E121 -> 100000 | I120: =H120*(1+$G$119) -> 102000 | J120: 104040 | K120: 106120.8 | L120: 108243.216 | M120: 110408.0803 | N120: 112616.2419 | O120: 114868.5668 | P120: 117165.9381 | Q120: 119509.2569
C121: Nombre d’inspecteurs qui seront recrutés au salaire annuel | D121: 10 | E121: 100000 | F121: =E121*0.065371 -> 6537.1 | G121: Dépenses courantes sur 5 ans (les recrutements se font de préférence la première année) | H121: =(H118+10)*H120 -> 1000000 | I121: =(I118+10)*I120 -> 2040000 | J121: 2080800 | K121: 2122416 | L121: 2164864.32 | M121: 2208161.606 | N121: 2252324.839 | O121: 2297371.335 | P121: 2343318.762 | Q121: 2390185.137 | R121: =SUM(G121:L121) -> 9408080.32 | S121: Le recrutement de deux nouveaux inspecteurs par district est-il suffisant pour superviser les classes d’accueil préprimaire ? Salaire annuel ? À vérifier.
B122: 1.4.3 Formation des inspecteurs spécialistes des soins et du développement de la petite enfance (en poste ou recrutés) | C122: Nombre d’inspecteurs qui devront être formés | D122: 20 | E122: 2500 | F122: =E122*0.065371 -> 163.4275 | G122: Coût ponctuel ? | H122: =(IF(H55=1,10,0)+(H118-SUM(G118)))*$E$122 -> 25000 | I122: 25000 | J122: 0 | K122: 0 | L122: 0 | M122: 0 | N122: 0 | O122: 0 | P122: 0 | Q122: 0 | R122: =SUM(G122:L122) -> 50000
B123: 1.4.4 Formation continue de tous les nouveaux enseignants des classes d’accueil préprimaire | C123: ê | D123: Nombre de jours de formation continue de longue durée | G123: =D34 -> 20
C124: ê | G124: Nombre d’enseignants suivant une formation continue de longue durée | H124: =H99 -> 0 | I124: =I99 -> 132.3318719 | J124: 167.6681281 | K124: 0 | L124: 0 | M124: 0 | N124: 0 | O124: 0 | P124: 0 | Q124: 0
C125: Nombre d’enseignants qui participeront à un atelier de 20 jours sur l’EPE | D125: 622 | E125: =G123*500 -> 10000 | F125: =E125*0.065371 -> 653.71 | G125: Veuillez suivre les scénarios d’élargissement pour déterminer le nombre de chefs d’établissement formés chaque année. | H125: =H124*$E125 -> 0 | I125: 1323318.719 | J125: 1676681.281 | K125: 0 | L125: 0 | M125: 0 | N125: 0 | O125: 0 | P125: 0 | Q125: 0 | R125: =SUM(H125:L125) -> 3000000
B126: 1.4.4 Formation continue de tous les enseignants des classes d’accueil préprimaire actuellement en poste ou nouvellement recrutés | C126: ê | D126: Pourcentage d’enseignants suivant une formation continue chaque année | G126: =D32 -> 0.2
C127: ê | D127: Nombre de jours de formation continue régulière | G127: =D33 -> 5
C128: ê | G128: Nombre d’enseignants suivant une formation continue de courte durée | H128: =H97 -> 257.9502959 | I128: =H98+$G$126*H103 -> 170.6300592 | J128: =I98+$G$126*I103 -> 215.2937732 | K128: 257.7215234 | L128: 275.7670929 | M128: 287.451751 | N128: 304.902716 | O128: 322.0046617 | P128: 338.7645685 | Q128: 350.4
C129: Nombre d’enseignants qui participeront à un atelier de 5 jours sur l’EPE | D129: 621.5 | E129: =G127*500 -> 2500 | F129: =E129*0.065371 -> 163.4275 | G129: Veuillez suivre les scénarios d’élargissement pour déterminer le nombre de chefs d’établissement formés chaque année. | H129: =H128*$E129 -> 644875.7396 | I129: 426575.1479 | J129: 538234.433 | K129: 644303.8084 | L129: 689417.7322 | M129: 718629.3776 | N129: 762256.79 | O129: 805011.6542 | P129: 846911.4211 | Q129: 876000 | R129: =SUM(H129:L129) -> 2943406.861 | S129: Hypothèse : 50 % des enseignants doivent recevoir une nouvelle orientation et suivre une formation continue d’un mois. Hypothèse : 50 % des enseignants doivent suivre une remise à niveau d’une semaine.
B130: 1.4.4 Formation continue de tous les nouveaux enseignants des classes d’accueil préprimaire | C130: ê | D130: Nombre de jours de formation continue de courte durée | G130: 2
C131: ê | D131: Année de mise en place du nouveau programme scolaire | G131: 2021
C132: ê | G132: Nombre d’enseignants suivant une formation continue de courte durée | H132: =IF(H56<$G$131,0,IF(H56=$G$131,H103,H102)) -> 0 | I132: 776.468866 | J132: 227.6681281 | K132: 110 | L132: 110 | M132: 110 | N132: 110 | O132: 110 | P132: 86.05361458 | Q132: 29.04
C133: Nombre d’enseignants qui participeront à un atelier de 20 jours sur l’EPE | D133: 622 | E133: =G130*500 -> 1000 | F133: =E133*0.065371 -> 65.371 | G133: Veuillez suivre les scénarios d’élargissement pour déterminer le nombre de chefs d’établissement formés chaque année. | H133: =H132*$E133 -> 0 | I133: 776468.866 | J133: 227668.1281 | K133: 110000 | L133: 110000 | M133: 110000 | N133: 110000 | O133: 110000 | P133: 86053.61458 | Q133: 29040 | R133: =SUM(H133:L133) -> 1224136.994
B134: 1.4.5 Orientation du responsable de la planification et des normes au niveau du district sur les classes d’accueil préprimaire/l’EPE | C134: ê | D134: Année de formation du personnel de district | G134: 2020
C135: Nombre de membres du personnel d’éducation des districts qui recevront une orientation sur l’EPE (2 jours ?) | D135: 20 | E135: 1000 | F135: =E135*0.065371 -> 65.371 | G135: Coût ponctuel (année 1 ou 2) | H135: =IF(H56=$G$134,$E$135*20,0) -> 20000 | I135: 0 | J135: 0 | K135: 0 | L135: 0 | M135: 0 | N135: 0 | O135: 0 | P135: 0 | Q135: 0 | R135: =SUM(H135:L135) -> 20000 | S135: Le format (et le coût unitaire) de l’orientation fournie au personnel d’éducation des districts doivent être vérifiés auprès du Ministère de l’éducation. 5 jours ? 3 jours ? Dans les districts ou au niveau national ? Coût estimé ?
B136: 1.4.6 Recrutement du personnel de direction de l’enseignement préprimaire (salaire annuel) | C136: Nombre de responsables de l’EPE | D136: 1 | E136: 150000 | F136: =E136*0.065371 -> 9805.65 | G136: Dépenses courantes (salaire du responsable de l’EPE) | H136: =$E$136 -> 150000 | I136: 150000 | J136: 150000 | K136: 150000 | L136: 150000 | M136: 150000 | N136: 150000 | O136: 150000 | P136: 150000 | Q136: 150000 | R136: =SUM(H136:L136) -> 750000
A137: 1.5 Élargir le programme d’alimentation scolaire | B137: 1.5.1. Élargissement du programme d’alimentation scolaire aux classes d’accueil préprimaire | C137: ê | D137: Nombre d’enfants par classe d’accueil préprimaire | G137: =D13 -> 23
C138: ê | G138: Nombre d’enfants scolarisés en classe d’accueil préprimaire | H138: =H103*$G$137 -> 12722.4568 | I138: =I103*$G$137 -> 17858.78392 | J138: 22737.97519 | K138: 24813.21568 | L138: 26156.95137 | M138: 28163.81234 | N138: 30130.53609 | O138: 32057.92537 | P138: 33396 | Q138: 33396
C139: Nombre d’enfants bénéficiant du programme d’alimentation scolaire chaque année (23 par classe d’accueil préprimaire) | D139: =1243*23.09 -> 28700.87 | E139: 900 | F139: =E139*0.065371 -> 58.8339 | G139: Dépenses courantes sur 5 ans | H139: =H138*$E$139 -> 11450211.12 | I139: 16072905.53 | J139: 20464177.67 | K139: 22331894.11 | L139: 23541256.23 | M139: 25347431.11 | N139: 27117482.48 | O139: 28852132.83 | P139: 30056400 | Q139: 30056400 | R139: =SUM(H139:L139) -> 93860444.66 | S139: 5 rands sud-africains par enfant et par jour (coût actuel de l’alimentation scolaire) et 180 jours d’école par an : 5 x 180 = 900 rands sud-africains par enfant pour une année. L’idéal serait de porter ce coût à 7 rands sud-africains par enfant et par jour. | V139: 40 | W139: =T139*U139*V139 -> 0
A140: COÛT TOTAL = | H140: =SUMIF($C61:$C139,"<>ê",H61:H139) -> 83838217.93 | I140: 78056444.95 | J140: 106187101.4 | K140: 116767196.7 | L140: 131398218.3 | M140: 151590341.6 | N140: 173236843 | O140: 121597484.7 | P140: 129299176.9 | Q140: 132769669.3 | R140: 516247179.4
F141: En dollars É-U | H141: =H140*0.065371 -> 5480588.144 | I141: =I140*0.065371 -> 5102627.863 | J141: =J140*0.065371 -> 6941557.008 | K141: =K140*0.065371 -> 7633188.416 | L141: =L140*0.065371 -> 8589632.931 | R141: =SUM(H141:L141) -> 33747594.36
H142: Année 1 2020-2021 | I142: Année 2 2021-2022 | J142: Année 3 2022-2023 | K142: Année 4 2023-2024 | L142: Année 5 2024-2025 | R142: Coût total (en rands sud-africains)
F144: Dépenses d’investissement | G144: Infrastructures | H144: =H62+H68+H74+H79 -> 53565751.48 | I144: 26285585.29 | J144: 31363587.66 | K144: 36658528.95 | L144: 43727113.66 | M144: 52360749.61 | N144: 62250000 | O144: 759007.381 | P144: 0 | Q144: 0 | R144: 191600567
G145: Équipement | H145: =H83+H88+H91 -> 2832171.302 | I145: 2049228.724 | J145: 2215718.83 | K145: 1001430.668 | L145: 1189365.46 | M145: 1415519.701 | N145: 1670288.49 | O145: 296413.3577 | P145: 279450 | Q145: 279450 | R145: 9287914.983
G146: Total des dépenses d’investissement | H146: =SUM(H144:H145) -> 56397922.78 | I146: =SUM(I144:I145) -> 28334814.02 | J146: 33579306.48 | K146: 37659959.62 | L146: 44916479.12 | M146: 53776269.31 | N146: 63920288.49 | O146: 1055420.739 | P146: 279450 | Q146: 279450 | R146: 200888482
F147: Dépenses courantes | G147: Salaires | H147: =H114+H115+H136+H121 -> 13872456.8 | I147: 30539066.25 | J147: 49112146.65 | K147: 55803216.7 | L147: 61878945.23 | M147: 71322585.64 | N147: 80951815.23 | O147: 90770347.11 | P147: 98030361.82 | Q147: 101528779.3 | R147: 211205831.6
G148: Formation | H148: =H135+H133+H129+H122+H116 -> 2117627.219 | I148: 1786340.439 | J148: 1354789.362 | K148: 972126.2719 | L148: 1061537.767 | M148: 1144055.58 | N148: 1247256.79 | O148: 919583.9878 | P148: 932965.0357 | Q148: 905040 | R148: 7292421.059
G149: Programme d’alimentation scolaire | H149: =H139 -> 11450211.12 | I149: =I139 -> 16072905.53 | J149: 20464177.67 | K149: 22331894.11 | L149: 23541256.23 | M149: 25347431.11 | N149: 27117482.48 | O149: 28852132.83 | P149: 30056400 | Q149: 30056400 | R149: 93860444.66
G150: Total des dépenses courantes | H150: =SUM(H147:H149) -> 27440295.15 | I150: 48398312.21 | J150: 70931113.68 | K150: 79107237.08 | L150: 86481739.23 | M150: 97814072.32 | N150: 109316554.5 | O150: 120542063.9 | P150: 129019726.9 | Q150: 132490219.3 | R150: 312358697.3
G151: Total | H151: =H150+H146 -> 83838217.93 | I151: =I150+I146 -> 76733126.23 | J151: 104510420.2 | K151: 116767196.7 | L151: 131398218.3 | M151: 151590341.6 | N151: 173236843 | O151: 121597484.7 | P151: 129299176.9 | Q151: 132769669.3 | R151: 513247179.4
G153: Total en pourcentage du budget d’éducation 2018-2019 | H153: =H151/1000000/3128 -> 0.02680249934 | I153: 0.02453105058 | J153: 0.03341125964 | K153: 0.03732966647 | L153: 0.04200710305 | M153: 0.04846238543 | N153: 0.05538262244 | O153: 0.03887387617 | P153: 0.04133605398 | Q153: 0.04244554645 | R153: 0.1640815791
G154: Budget courant consacré au DPE en pourcentage du budget | H154: =240*$E$114/3128/1000000 -> 0.001764705882 | I154: 0.001764705882 | J154: 0.001764705882 | K154: 0.001764705882 | L154: 0.001764705882 | M154: 0.001764705882 | N154: 0.001764705882 | O154: 0.001764705882 | P154: 0.001764705882 | Q154: 0.001764705882 | R154: 0.001764705882
G156: 9080
G157: 20192020 | H157: 20202021 | I157: 20212022 | J157: 20222023 | K157: 20232024 | L157: 20242025 | M157: 20252026 | N157: 20262027 | O157: 20272028 | P157: 20282029 | Q157: 20292030
G158: 2019 | H158: 2020 | I158: 2021 | J158: 2022 | K158: 2023 | L158: 2024 | M158: 2025 | N158: 2026 | O158: 2027 | P158: 2028 | Q158: 2029
F159: Population en milliers d’habitants (Source : projection de variation moyenne de la population établie par l’ONU et actualisée en 2017) | G159: 56.647 | H159: 57.107 | I159: 57.567 | J159: 57.726 | K159: 57.681 | L159: 57.584 | M159: 57.623 | N159: 57.609 | O159: 57.528 | P159: 57.393 | Q159: 57.213
G160: 20192020 | H160: 20202021 | I160: 20212022 | J160: 20222023 | K160: 20232024 | L160: 20242025 | M160: 20252026 | N160: 20262027 | O160: 20272028 | P160: 20282029 | Q160: 20292030
F161: Effectifs scolarisés en classe d’accueil préprimaire | G161: =23*240 -> 5520 | H161: =H138 -> 12722.4568 | I161: =I138 -> 17858.78392 | J161: 22737.97519 | K161: 24813.21568 | L161: 26156.95137 | M161: 28163.81234 | N161: 30130.53609 | O161: 32057.92537 | P161: 33396 | Q161: 33396
C162: Croissance annuelle des effectifs dans l’enseignement privé | D162: 0.05 | F162: Effectifs scolarisés dans l’enseignement privé | G162: =G156 -> 9080 | H162: =G162*(1+$D$162) -> 9534 | I162: =H162*(1+$D$162) -> 10010.7 | J162: 10511.235 | K162: 11036.79675 | L162: 11588.63659 | M162: 12168.06842 | N162: 12776.47184 | O162: 13415.29543 | P162: 14086.0602 | Q162: 14790.36321
F163: Total des effectifs scolarisés | G163: =23*240+G156 -> 14600 | H163: =H138+H162 -> 22256.4568 | I163: =I138+I162 -> 27869.48392 | J163: 33249.21019 | K163: 35850.01243 | L163: 37745.58796 | M163: 40331.88076 | N163: 42907.00793 | O163: =O138+O162 -> 45473.2208 | P163: =P138+P162 -> 47482.0602 | Q163: =Q138+Q162 -> 48186.36321
F164: Scolarisation en classe d’accueil préprimaire en pourcentage de la population d’enfants de 5 ans | G164: =G161/G$159/1000 -> 0.09744558406 | H164: =H161/H$159/1000 -> 0.2227827903 | I164: 0.3102260656 | J164: 0.3938948686 | K164: 0.4301800538 | L164: 0.4542399168 | M164: 0.4887599108 | N164: 0.5230178634 | O164: 0.5572577766 | P164: 0.581882808 | Q164: 0.5837134917
F165: Taux brut de scolarisation | G165: =G163/G$159/1000 -> 0.2577365086 | H165: =H163/H$159/1000 -> 0.3897325513 | I165: 0.4841225688 | J165: 0.575983269 | K165: 0.6215220338 | L165: 0.6554874263 | M165: 0.6999267785 | N165: 0.7447969576 | O165: 0.7904537061 | P165: 0.8273144844 | Q165: 0.8422275219
G167: 20192020 | H167: 20202021 | I167: 20212022 | J167: 20222023 | K167: 20232024 | L167: 20242025 | M167: 20252026 | N167: 20262027 | O167: 20272028 | P167: 20282029 | Q167: 20292030
D168: Pourcentage d’enfants de 5 ans scolarisés : | F168: En classe d’accueil préprimaire | G168: =G164 -> 0.09744558406 | H168: 0.2227827903 | I168: 0.3102260656 | J168: 0.3938948686 | K168: 0.4301800538 | L168: 0.4542399168 | M168: 0.4887599108 | N168: 0.5230178634 | O168: 0.5572577766 | P168: 0.581882808 | Q168: 0.5837134917
F169: Effectifs scolarisés dans l’enseignement privé | G169: =G162/G159/1000 -> 0.1602909245 | H169: =H162/H159/1000 -> 0.166949761 | I169: 0.1738965032 | J169: 0.1820884004 | K169: 0.19134198 | L169: 0.2012475095 | M169: 0.2111668677 | N169: 0.2217790942 | O169: 0.2331959295 | P169: 0.2454316764 | Q169: 0.2585140302
F170: Non scolarisés | G170: =1-G168-G169 -> 0.7422634914 | H170: 0.6102674487 | I170: 0.5158774312 | J170: 0.424016731 | K170: 0.3784779662 | L170: 0.3445125737 | M170: 0.3000732215 | N170: 0.2552030424 | O170: 0.2095462939 | P170: 0.1726855156 | Q170: 0.1577724781
A171: Éléments non chiffrés ici mais que nous suggérons de chiffrer dans le cadre des stratégies du plan sectoriel d’éducation.
A172: Formation initiale
B173: Élaboration d’une nouvelle formation diplômante
B174: Élaboration de ressources
B175: Renforcement des capacités à l’intention des nouveaux formateurs d’enseignants
B176: Déploiement de la formation des enseignants dans tous les districts
A177: Formation continue complémentaire
B178: Formation des enseignants spécialistes des soins et du développement de la petite enfance (hors classes d’accueil préprimaire) : peut être coordonnée avec le déploiement du nouveau programme scolaire
A180: Nouveau programme d’enseignement préprimaire : en cours de planification
B181: Coût d’élaboration du programme scolaire
B182: Phase d’expérimentation
B183: Conception de l’évaluation des apprentissages
B184: Déploiement du programme scolaire et formation des enseignants de l’EPE
A186: Participation des parents et des communautés
B187: Formation des membres d’associations parents-enseignants
B188: Élaboration d’orientations sur l’EPE à l’intention des associations parents-enseignants (à définir)
B189: Conception et promotion de modules d’éducation parentale
A191: Assurance qualité et réglementation
B192: Examen des normes de qualité
B193: Examen des inscriptions et appui aux centres de prise en charge et de développement de la petite enfance
B194: Examen du système d’information sur la gestion des établissements d’enseignement (SIGE)
B195: Formation des responsables du suivi

Sheet Comparaison des scénarios
E2: 20202021 | F2: 20212022 | G2: 20222023 | H2: 20232024 | I2: 20242025 | J2: 20252026 | K2: 20262027 | L2: 20272028 | M2: 20282029 | N2: 20292030
C3: Dépenses totales | D3: Scénario 1
D4: Scénario 2
D5: Scénario 3
D7: 20192020 | E7: 20202021 | F7: 20212022 | G7: 20222023 | H7: 20232024 | I7: 20242025 | J7: 20252026 | K7: 20262027 | L7: 20272028 | M7: 20282029 | N7: 20292030
B8: Dépenses totales en pourcentage du budget d’éducation 2018 | C8: Scénario 1 | D8: 0.002
C9: Scénario 2 | D9: 0.002
C10: Scénario 3 | D10: 0.002
D12: 20192020 | E12: 20202021 | F12: 20212022 | G12: 20222023 | H12: 20232024 | I12: 20242025 | J12: 20252026 | K12: 20262027 | L12: 20272028 | M12: 20282029 | N12: 20292030
B13: Total des effectifs scolarisés en classe d’accueil préprimaire | C13: Scénario 1
C14: Scénario 2
C15: Scénario 3
D17: 20192020 | E17: 20202021 | F17: 20212022 | G17: 20222023 | H17: 20232024 | I17: 20242025 | J17: 20252026 | K17: 20262027 | L17: 20272028 | M17: 20282029 | N17: 20292030
B18: Taux brut de scolarisation | C18: Scénario 1
C19: Scénario 2
C20: Scénario 3
A53: Pour modifier un graphique à partir des tableaux de scénario, entrez le numéro de la ligne ici : | F53: 102
E55: 20202021 | F55: 20212022 | G55: 20222023 | H55: 20232024 | I55: 20242025 | J55: 20252026 | K55: 20262027 | L55: 20272028 | M55: 20282029 | N55: 20292030
D56: Scénario 1
D57: Scénario 2
D58: Scénario 3
